{"text_format":"3","workbook":"xlsx","n_sheets":2,"sheets":["Форма 1","Коды программ"],"not_rendered":{"images":1,"external_links":3},"read":"whole","date_system":"1900"}

{"sheet":"Форма 1","index":0,"n_rows":113,"n_cols":33,"rows_kept":113,"merged":[[1,1,1,32],[2,0,2,32],[4,0,6,0],[4,1,6,1],[4,2,6,2],[4,3,6,3],[4,4,6,4],[4,5,6,5],[4,6,4,30],[4,31,6,31],[4,32,6,32],[5,6,5,11],[5,12,5,14],[5,15,5,18],[5,19,5,24],[5,25,5,30]]}
[{"$nulls":4},{"$f":"MATCH(\"01\",D9:D23,0)","v":1},{"$nulls":27},"Приложение 2"]
[]
["Не допускается предоставление отчета в адрес Минпросвещения России образовательными организациями. Данные подаются региональным органом исполнительной власти по всем ОО СПО, расположенным на территории субъекта Российской Федерации, вне зависимости от ведомственной принадлежности\nЯчейки не объединяются.\nЯчейки с числовыми данными, одновременно содержащими текст или другие числовые значения, учитываться не будут. Формат ячеек с числовыми данными - только \"Числовой\"\nГрафы \"ПРОВЕРКА\" не удаляются и не редактируются\nФормулы логического контроля:\nгр. 09 и гр. 10 < гр. 08 \nсумма по видам деятельности (кроме граф \"в том числе\") равна суммарному выпуску в 2021 году (гр. 07= гр.08 + сумма(с гр.11 по гр.32))\nстр. 06 = стр. 02 + стр. 04\nстр. 06 = стр.07 + стр.08 + стр.09 + стр.10 + стр.11 + стр.12 + стр. 13\nстр. 14<=стр. 06, стр. 14<=стр 05 (<= означает \"меньше или равно\")"]
[]
["Наименование ПОО","Код профессии, специальности в формате хх.хх.хх в соответствии с приказом Минобрнауки России \nот 29 октября 2013 г. № 1199\n\n(выбрать из раскрывающегося списка, проверить графу 04)","Наименование профессии, специальности\n \n(добавляется автоматически при корректном вводе кода)","Номер строки","Наименование показателей \n(категория выпускников)\n\n(редактирование наименования \nне допускается)\n\n","Суммарный выпуск \n(человек)\n","Распределение выпускников по каналам занятости и иным видам деятельности, человек (каждый выпускник учитывается один раз. Единица измерения - человек)",{"$nulls":24},"Принимаемые меры по содействию занятости \n\n(тезисно - вид меры, охват выпускников мерой)","ПРОВЕРКА \n\n(сумма по всем категориям выпускников, распределенных по видам занятости, должна равняться сумме выпускников всего)"]
[{"$nulls":6},"Занятые выпускники",{"$nulls":5},"Потенциальная занятость (не относится к занятости по итогам обучения, требует дополнительных мер)",null,null,"Зона риска (требует оперативных мер и адресной работы)",{"$nulls":3},"Прочее, редкие жизненные обстоятельства",{"$nulls":5},"Профессиональные намерения выпускников, ожидаемый эффект от работы по содействию занятости (на ближайшую перспективу - порядка 3-х месяцев)"]
[{"$nulls":6},"Трудоустроены \n(по трудовому договору, договору ГПХ в соответствии с трудовым законодательством, законодательством  об обязательном пенсионном страховании)\n","\n\nВ том числе (из трудоустроенных): в соответствии с освоенной профессией, специальностью (исходя из осуществляемой трудовой функции)","\n\nВ том числе (из трудоустроенных): работают на протяжении не менее 4-х месяцев на последнем месте работы","Индиви-дуальные предприни-матели ","Самозанятые (перешедшие на специальный налоговый режим  - налог на профессио-нальный доход)","Продолжили обучение","Проходят службу в армии по призыву","Проходят службу в армии на контрактной основе, в органах внутренних дел, Государственной противопожарной службе, органах по контролю за оборотом наркотических средств и психотропных веществ, учреждениях и органах уголовно-исполнительной системы, войсках национальной гвардии Российской Федерации, органах принудительного исполнения Российской Федерации*\n","Находятся в отпуске по уходу \nза ребенком","Неформальная занятость (нелегальная)","Зарегистрированы в центрах занятости в качестве безработных (получают пособие по безработице) и не планируют трудоустраиваться","Не имеют мотивации к трудоустройству (кроме зарегистрированных в качестве безработных) и не планируют трудоустраиваться, в том числе по причинам получения иных социальных льгот ","Иные причины нахождения под риском нетрудоустройства","Смерть, тяжелое состояние здоровья","Находятся под следствием, отбывают наказание ","Переезд за пределы Российской Федерации\n\n(кроме переезда в иные регионы - по ним регион должен располагать сведениями)","Не могут трудоустраиваться в связи с уходом за больными родственниками, в связи с иными семейными обстоятельствами","Выпускники из числа иностранных граждан, которые не имеют СНИЛС","Иное\n \n(в первую очередь выпускники распределяются по всем остальным графам. Данная графа предназначена для очень редких случаев. Если в нее включено более 1 из 200 выпускников - укажите причины в гр. 33 ","будут трудоустроены","будут осуществлять предприни-мательскую деятельность","будут самозанятыми","будут призваны в армию","будут в армии на контрактной основе, в органах внутренних дел, Государственной противопожарной службе, органах по контролю за оборотом наркотических средств и психотропных веществ, учреждениях и органах уголовно-исполнительной системы, войсках национальной гвардии Российской Федерации, органах принудительного исполнения Российской Федерации*\n","будут продолжать обучение"]
[2,"03","04","05","06","07","08","09","10","11","12","13","14","15","16","17","18","19","20","21","22","23","24","25","26","27","28","29","30","31","32","33","34"]
["ГАПОУ \"Казанский колледж строительства,архитектуры и городского хозяйства\"","39.02.01",{"$f":"VLOOKUP(B9,'Коды программ'!$A$2:$B$578,2,FALSE)","v":"Социальная работа"},"01","Всего (общая численность выпускников)",20,10,3,0,0,0,5,0,0,0,5,0,0,0,0,0,0,0,0,0,0,0,0,0,0,0,null,{"$f":"IF(F9=G9+J9+K9+L9+M9+N9+O9+P9+Q9+R9+S9+T9+U9+V9+W9+X9+Y9+Z9+AA9+AB9+AC9+AD9+AE9,\"проверка пройдена\",\"ВНИМАНИЕ! Сумма по строке не сходится с общей численностью выпускников! Исправьте ошибку в расчетах, пока это сообщение не исчезнет!\")","v":"проверка пройдена"}]
["ГАПОУ \"Казанский колледж строительства,архитектуры и городского хозяйства\"","39.02.01",{"$f":"VLOOKUP(B10,'Коды программ'!$A$2:$B$578,2,FALSE)","v":"Социальная работа"},"02","из общей численности выпускников (из строки 01): лица с ОВЗ",0,0,0,0,0,0,0,0,0,0,0,0,0,0,0,0,0,0,0,0,0,0,0,0,0,0,null,{"$f":"IF(F10=G10+J10+K10+L10+M10+N10+O10+P10+Q10+R10+S10+T10+U10+V10+W10+X10+Y10+Z10+AA10+AB10+AC10+AD10+AE10,\"проверка пройдена\",\"ВНИМАНИЕ! Сумма по строке не сходится с общей численностью выпускников! Исправьте ошибку в расчетах, пока это сообщение не исчезнет!\")","v":"проверка пройдена"}]
["ГАПОУ \"Казанский колледж строительства,архитектуры и городского хозяйства\"","39.02.01",{"$f":"VLOOKUP(B11,'Коды программ'!$A$2:$B$578,2,FALSE)","v":"Социальная работа"},"03","из числа лиц с ОВЗ (из строки 02): инвалиды и дети-инвалиды",0,0,0,0,0,0,0,0,0,0,0,0,0,0,0,0,0,0,0,0,0,0,0,0,0,0,null,"проверка пройдена"]
["ГАПОУ \"Казанский колледж строительства,архитектуры и городского хозяйства\"","39.02.01",{"$f":"VLOOKUP(B12,'Коды программ'!$A$2:$B$578,2,FALSE)","v":"Социальная работа"},"04","Инвалиды и дети-инвалиды (кроме учтенных в строке 03)",0,0,0,0,0,0,0,0,0,0,0,0,0,0,0,0,0,0,0,0,0,0,0,0,0,0,null,"проверка пройдена"]
["ГАПОУ \"Казанский колледж строительства,архитектуры и городского хозяйства\"","39.02.01",{"$f":"VLOOKUP(B13,'Коды программ'!$A$2:$B$578,2,FALSE)","v":"Социальная работа"},"05","Имеют договор о целевом обучении",0,0,0,0,0,0,0,0,0,0,0,0,0,0,0,0,0,0,0,0,0,0,0,0,0,0,null,"проверка пройдена"]
["ГАПОУ \"Казанский колледж строительства,архитектуры и городского хозяйства\"","39.02.01",{"$f":"VLOOKUP(B14,'[1]Коды программ'!$A$2:$B$578,2,FALSE)","v":"Социальная работа"},"06","Автосумма строк 02 и 04 - Всего (общая численность выпускников из числа лиц с ОВЗ, инвалидов и детей-инвалидов) ",{"$f":"F10+F12","v":0},0,0,0,0,0,0,0,0,0,{"$f":"P10+P12","v":0},0,0,0,0,0,0,0,0,0,0,0,0,0,0,0,null,{"$f":"IF(F14=G14+J14+K14+L14+M14+N14+O14+P14+Q14+R14+S14+T14+U14+V14+W14+X14+Y14+Z14+AA14+AB14+AC14+AD14+AE14,\"проверка пройдена\",\"ВНИМАНИЕ! Сумма по строке не сходится с общей численностью выпускников! Исправьте ошибку в расчетах, пока это сообщение не исчезнет!\")","v":"проверка пройдена"}]
["ГАПОУ \"Казанский колледж строительства,архитектуры и городского хозяйства\"","39.02.01",{"$f":"VLOOKUP(B15,'[1]Коды программ'!$A$2:$B$578,2,FALSE)","v":"Социальная работа"},"07","из общей численности выпускников из числа лиц с ОВЗ, инвалидов и детей-инвалидов (из строки 06): с нарушениями:\n           зрения",0,0,0,0,0,0,0,0,0,0,0,0,0,0,0,0,0,0,0,0,0,0,0,0,0,0,null,{"$f":"IF(F15=G15+J15+K15+L15+M15+N15+O15+P15+Q15+R15+S15+T15+U15+V15+W15+X15+Y15+Z15+AA15+AB15+AC15+AD15+AE15,\"проверка пройдена\",\"ВНИМАНИЕ! Сумма по строке не сходится с общей численностью выпускников! Исправьте ошибку в расчетах, пока это сообщение не исчезнет!\")","v":"проверка пройдена"}]
["ГАПОУ \"Казанский колледж строительства,архитектуры и городского хозяйства\"","39.02.01",{"$f":"VLOOKUP(B16,'[1]Коды программ'!$A$2:$B$578,2,FALSE)","v":"Социальная работа"},"08","           слуха",0,0,0,0,0,0,0,0,0,0,0,0,0,0,0,0,0,0,0,0,0,0,0,0,0,0,null,{"$f":"IF(F16=G16+J16+K16+L16+M16+N16+O16+P16+Q16+R16+S16+T16+U16+V16+W16+X16+Y16+Z16+AA16+AB16+AC16+AD16+AE16,\"проверка пройдена\",\"ВНИМАНИЕ! Сумма по строке не сходится с общей численностью выпускников! Исправьте ошибку в расчетах, пока это сообщение не исчезнет!\")","v":"проверка пройдена"}]
["ГАПОУ \"Казанский колледж строительства,архитектуры и городского хозяйства\"","39.02.01",{"$f":"VLOOKUP(B17,'[1]Коды программ'!$A$2:$B$578,2,FALSE)","v":"Социальная работа"},"09","           опорно-двигательного аппарата",0,0,0,0,0,0,0,0,0,0,0,0,0,0,0,0,0,0,0,0,0,0,0,0,0,0,null,"проверка пройдена"]
["ГАПОУ \"Казанский колледж строительства,архитектуры и городского хозяйства\"","39.02.01",{"$f":"VLOOKUP(B18,'[1]Коды программ'!$A$2:$B$578,2,FALSE)","v":"Социальная работа"},"10","           тяжелыми нарушениями речи",0,0,0,0,0,0,0,0,0,0,0,0,0,0,0,0,0,0,0,0,0,0,0,0,0,0,null,"проверка пройдена"]
["ГАПОУ \"Казанский колледж строительства,архитектуры и городского хозяйства\"","39.02.01",{"$f":"VLOOKUP(B19,'[1]Коды программ'!$A$2:$B$578,2,FALSE)","v":"Социальная работа"},"11","           задержкой психического развития",0,0,0,0,0,0,0,0,0,0,0,0,0,{"$nulls":3},0,0,0,0,0,0,0,0,0,0,null,{"$f":"IF(F19=G19+J19+K19+L19+M19+N19+O19+P19+Q19+R19+S19+T19+U19+V19+W19+X19+Y19+Z19+AA19+AB19+AC19+AD19+AE19,\"проверка пройдена\",\"ВНИМАНИЕ! Сумма по строке не сходится с общей численностью выпускников! Исправьте ошибку в расчетах, пока это сообщение не исчезнет!\")","v":"проверка пройдена"}]
["ГАПОУ \"Казанский колледж строительства,архитектуры и городского хозяйства\"","39.02.01",{"$f":"VLOOKUP(B20,'[1]Коды программ'!$A$2:$B$578,2,FALSE)","v":"Социальная работа"},"12","           расстройствами аутистического\n           спектра",0,0,0,0,0,0,0,0,0,0,0,0,0,0,0,0,0,0,0,0,0,0,0,0,0,0,null,"проверка пройдена"]
["ГАПОУ \"Казанский колледж строительства,архитектуры и городского хозяйства\"","39.02.01",{"$f":"VLOOKUP(B21,'[1]Коды программ'!$A$2:$B$578,2,FALSE)","v":"Социальная работа"},"13","           с инвалидностью вследствие\n           других причин",0,0,0,0,0,0,0,0,0,0,0,0,0,0,0,0,0,0,0,0,0,0,0,0,0,0,null,"проверка пройдена"]
["ГАПОУ \"Казанский колледж строительства,архитектуры и городского хозяйства\"","39.02.01",{"$f":"VLOOKUP(B22,'[1]Коды программ'!$A$2:$B$578,2,FALSE)","v":"Социальная работа"},"14","из общей численности выпускников из числа лиц с ОВЗ, инвалидов и детей-инвалидов (из строки 06): имеют договор о целевом обучении",0,0,0,0,0,0,0,0,0,0,0,0,0,0,0,0,0,0,0,0,0,0,0,0,0,0,null,"проверка пройдена"]
["ГАПОУ \"Казанский колледж строительства,архитектуры и городского хозяйства\"","39.02.01",{"$f":"VLOOKUP(B23,'[1]Коды программ'!$A$2:$B$578,2,FALSE)","v":"Социальная работа"},"15","из общей численности выпускников из числа лиц с ОВЗ, инвалидов и детей-инвалидов (из строки 06): принимали участие в чемпионате «Абилимпикс»",0,0,0,0,0,0,0,0,0,0,0,0,0,0,0,0,0,0,0,0,0,0,0,0,0,0,null,"проверка пройдена"]
["ГАПОУ \"Казанский колледж строительства,архитектуры и городского хозяйства\"","38.02.01",{"$f":"VLOOKUP(B24,'Коды программ'!$A$2:$B$578,2,FALSE)","v":"Экономика и бухгалтерский учет (по отраслям)"},"01","Всего (общая численность выпускников)",15,11,7,0,0,0,0,0,0,0,4,0,0,0,0,0,0,0,0,0,0,0,0,0,0,0,null,{"$f":"IF(F24=G24+J24+K24+L24+M24+N24+O24+P24+Q24+R24+S24+T24+U24+V24+W24+X24+Y24+Z24+AA24+AB24+AC24+AD24+AE24,\"проверка пройдена\",\"ВНИМАНИЕ! Сумма по строке не сходится с общей численностью выпускников! Исправьте ошибку в расчетах, пока это сообщение не исчезнет!\")","v":"проверка пройдена"}]
["ГАПОУ \"Казанский колледж строительства,архитектуры и городского хозяйства\"","38.02.01",{"$f":"VLOOKUP(B25,'Коды программ'!$A$2:$B$578,2,FALSE)","v":"Экономика и бухгалтерский учет (по отраслям)"},"02","из общей численности выпускников (из строки 01): лица с ОВЗ",0,0,null,null,0,0,0,0,0,0,0,0,0,0,0,0,0,null,null,0,0,0,0,0,0,0,null,{"$f":"IF(F25=G25+J25+K25+L25+M25+N25+O25+P25+Q25+R25+S25+T25+U25+V25+W25+X25+Y25+Z25+AA25+AB25+AC25+AD25+AE25,\"проверка пройдена\",\"ВНИМАНИЕ! Сумма по строке не сходится с общей численностью выпускников! Исправьте ошибку в расчетах, пока это сообщение не исчезнет!\")","v":"проверка пройдена"}]
["ГАПОУ \"Казанский колледж строительства,архитектуры и городского хозяйства\"","38.02.01",{"$f":"VLOOKUP(B26,'Коды программ'!$A$2:$B$578,2,FALSE)","v":"Экономика и бухгалтерский учет (по отраслям)"},"03","из числа лиц с ОВЗ (из строки 02): инвалиды и дети-инвалиды",0,0,0,0,0,0,0,0,0,0,0,0,0,0,0,0,0,0,0,0,0,0,0,0,0,0,null,"проверка пройдена"]
["ГАПОУ \"Казанский колледж строительства,архитектуры и городского хозяйства\"","38.02.01",{"$f":"VLOOKUP(B27,'Коды программ'!$A$2:$B$578,2,FALSE)","v":"Экономика и бухгалтерский учет (по отраслям)"},"04","Инвалиды и дети-инвалиды (кроме учтенных в строке 03)",0,0,0,0,0,0,0,0,0,0,0,0,0,0,0,0,0,0,0,0,0,0,0,0,0,0,null,"проверка пройдена"]
["ГАПОУ \"Казанский колледж строительства,архитектуры и городского хозяйства\"","38.02.01",{"$f":"VLOOKUP(B28,'Коды программ'!$A$2:$B$578,2,FALSE)","v":"Экономика и бухгалтерский учет (по отраслям)"},"05","Имеют договор о целевом обучении",0,0,0,0,0,0,0,0,0,0,0,0,0,0,0,0,0,0,0,0,0,0,0,0,0,0,null,"проверка пройдена"]
["ГАПОУ \"Казанский колледж строительства,архитектуры и городского хозяйства\"","38.02.01",{"$f":"VLOOKUP(B29,'[1]Коды программ'!$A$2:$B$578,2,FALSE)","v":"Экономика и бухгалтерский учет (по отраслям)"},"06","Автосумма строк 02 и 04 - Всего (общая численность выпускников из числа лиц с ОВЗ, инвалидов и детей-инвалидов) ",{"$f":"F25+F27","v":0},{"$f":"G25+G27","v":0},0,0,0,0,0,0,0,0,0,0,0,0,0,0,0,0,0,0,0,0,0,0,0,0,null,{"$f":"IF(F29=G29+J29+K29+L29+M29+N29+O29+P29+Q29+R29+S29+T29+U29+V29+W29+X29+Y29+Z29+AA29+AB29+AC29+AD29+AE29,\"проверка пройдена\",\"ВНИМАНИЕ! Сумма по строке не сходится с общей численностью выпускников! Исправьте ошибку в расчетах, пока это сообщение не исчезнет!\")","v":"проверка пройдена"}]
["ГАПОУ \"Казанский колледж строительства,архитектуры и городского хозяйства\"","38.02.01",{"$f":"VLOOKUP(B30,'[1]Коды программ'!$A$2:$B$578,2,FALSE)","v":"Экономика и бухгалтерский учет (по отраслям)"},"07","из общей численности выпускников из числа лиц с ОВЗ, инвалидов и детей-инвалидов (из строки 06): с нарушениями:\n           зрения",0,{"$nulls":24},0,null,{"$f":"IF(F30=G30+J30+K30+L30+M30+N30+O30+P30+Q30+R30+S30+T30+U30+V30+W30+X30+Y30+Z30+AA30+AB30+AC30+AD30+AE30,\"проверка пройдена\",\"ВНИМАНИЕ! Сумма по строке не сходится с общей численностью выпускников! Исправьте ошибку в расчетах, пока это сообщение не исчезнет!\")","v":"проверка пройдена"}]
["ГАПОУ \"Казанский колледж строительства,архитектуры и городского хозяйства\"","38.02.01",{"$f":"VLOOKUP(B31,'[1]Коды программ'!$A$2:$B$578,2,FALSE)","v":"Экономика и бухгалтерский учет (по отраслям)"},"08","           слуха",0,0,0,0,0,0,0,0,0,0,0,0,0,0,0,0,0,0,0,0,0,0,0,0,0,0,null,{"$f":"IF(F31=G31+J31+K31+L31+M31+N31+O31+P31+Q31+R31+S31+T31+U31+V31+W31+X31+Y31+Z31+AA31+AB31+AC31+AD31+AE31,\"проверка пройдена\",\"ВНИМАНИЕ! Сумма по строке не сходится с общей численностью выпускников! Исправьте ошибку в расчетах, пока это сообщение не исчезнет!\")","v":"проверка пройдена"}]
["ГАПОУ \"Казанский колледж строительства,архитектуры и городского хозяйства\"","38.02.01",{"$f":"VLOOKUP(B32,'[1]Коды программ'!$A$2:$B$578,2,FALSE)","v":"Экономика и бухгалтерский учет (по отраслям)"},"09","           опорно-двигательного аппарата",0,0,0,0,0,0,0,0,0,0,0,0,0,0,0,0,0,0,0,0,0,0,0,0,0,0,null,"проверка пройдена"]
["ГАПОУ \"Казанский колледж строительства,архитектуры и городского хозяйства\"","38.02.01",{"$f":"VLOOKUP(B33,'[1]Коды программ'!$A$2:$B$578,2,FALSE)","v":"Экономика и бухгалтерский учет (по отраслям)"},"10","           тяжелыми нарушениями речи",0,0,0,0,0,0,0,0,0,0,0,0,0,0,0,0,0,0,0,0,0,0,0,0,0,0,null,"проверка пройдена"]
["ГАПОУ \"Казанский колледж строительства,архитектуры и городского хозяйства\"","38.02.01",{"$f":"VLOOKUP(B34,'[1]Коды программ'!$A$2:$B$578,2,FALSE)","v":"Экономика и бухгалтерский учет (по отраслям)"},"11","           задержкой психического развития",0,0,0,0,0,0,0,0,0,0,0,0,0,0,0,0,0,0,0,0,0,0,0,0,0,0,null,{"$f":"IF(F34=G34+J34+K34+L34+M34+N34+O34+P34+Q34+R34+S34+T34+U34+V34+W34+X34+Y34+Z34+AA34+AB34+AC34+AD34+AE34,\"проверка пройдена\",\"ВНИМАНИЕ! Сумма по строке не сходится с общей численностью выпускников! Исправьте ошибку в расчетах, пока это сообщение не исчезнет!\")","v":"проверка пройдена"}]
["ГАПОУ \"Казанский колледж строительства,архитектуры и городского хозяйства\"","38.02.01",{"$f":"VLOOKUP(B35,'[1]Коды программ'!$A$2:$B$578,2,FALSE)","v":"Экономика и бухгалтерский учет (по отраслям)"},"12","           расстройствами аутистического\n           спектра",0,0,0,0,0,0,0,0,0,0,0,0,0,0,0,0,0,0,0,0,0,0,0,0,0,0,null,{"$f":"IF(F35=G35+J35+K35+L35+M35+N35+O35+P35+Q35+R35+S35+T35+U35+V35+W35+X35+Y35+Z35+AA35+AB35+AC35+AD35+AE35,\"проверка пройдена\",\"ВНИМАНИЕ! Сумма по строке не сходится с общей численностью выпускников! Исправьте ошибку в расчетах, пока это сообщение не исчезнет!\")","v":"проверка пройдена"}]
["ГАПОУ \"Казанский колледж строительства,архитектуры и городского хозяйства\"","38.02.01",{"$f":"VLOOKUP(B36,'[1]Коды программ'!$A$2:$B$578,2,FALSE)","v":"Экономика и бухгалтерский учет (по отраслям)"},"13","           с инвалидностью вследствие\n           других причин",1,1,1,0,0,0,{"$nulls":19},0,null,"проверка пройдена"]
["ГАПОУ \"Казанский колледж строительства,архитектуры и городского хозяйства\"","38.02.01",{"$f":"VLOOKUP(B37,'[1]Коды программ'!$A$2:$B$578,2,FALSE)","v":"Экономика и бухгалтерский учет (по отраслям)"},"14","из общей численности выпускников из числа лиц с ОВЗ, инвалидов и детей-инвалидов (из строки 06): имеют договор о целевом обучении",0,0,0,0,0,0,0,0,0,0,0,0,0,0,0,0,0,0,0,0,0,0,0,0,0,0,null,"проверка пройдена"]
["ГАПОУ \"Казанский колледж строительства,архитектуры и городского хозяйства\"","38.02.01",{"$f":"VLOOKUP(B38,'[1]Коды программ'!$A$2:$B$578,2,FALSE)","v":"Экономика и бухгалтерский учет (по отраслям)"},"15","из общей численности выпускников из числа лиц с ОВЗ, инвалидов и детей-инвалидов (из строки 06): принимали участие в чемпионате «Абилимпикс»",1,1,1,0,0,0,0,0,0,0,0,0,0,0,0,0,0,0,0,0,0,0,0,0,0,0,null,"проверка пройдена"]
["ГАПОУ \"Казанский колледж строительства,архитектуры и городского хозяйства\"","08.02.11",{"$f":"VLOOKUP(B39,'Коды программ'!$A$2:$B$578,2,FALSE)","v":"Управление, эксплуатация и обслуживание многоквартирного дома"},"01","Всего (общая численность выпускников)",18,10,2,0,0,0,6,0,0,2,0,0,0,0,0,0,0,0,0,0,0,0,0,0,0,0,null,{"$f":"IF(F39=G39+J39+K39+L39+M39+N39+O39+P39+Q39+R39+S39+T39+U39+V39+W39+X39+Y39+Z39+AA39+AB39+AC39+AD39+AE39,\"проверка пройдена\",\"ВНИМАНИЕ! Сумма по строке не сходится с общей численностью выпускников! Исправьте ошибку в расчетах, пока это сообщение не исчезнет!\")","v":"проверка пройдена"}]
["ГАПОУ \"Казанский колледж строительства,архитектуры и городского хозяйства\"","08.02.11",{"$f":"VLOOKUP(B40,'Коды программ'!$A$2:$B$578,2,FALSE)","v":"Управление, эксплуатация и обслуживание многоквартирного дома"},"02","из общей численности выпускников (из строки 01): лица с ОВЗ",0,0,0,0,0,0,0,0,0,0,0,0,0,0,0,0,0,0,0,0,0,0,0,0,0,0,null,{"$f":"IF(F40=G40+J40+K40+L40+M40+N40+O40+P40+Q40+R40+S40+T40+U40+V40+W40+X40+Y40+Z40+AA40+AB40+AC40+AD40+AE40,\"проверка пройдена\",\"ВНИМАНИЕ! Сумма по строке не сходится с общей численностью выпускников! Исправьте ошибку в расчетах, пока это сообщение не исчезнет!\")","v":"проверка пройдена"}]
["ГАПОУ \"Казанский колледж строительства,архитектуры и городского хозяйства\"","08.02.11",{"$f":"VLOOKUP(B41,'Коды программ'!$A$2:$B$578,2,FALSE)","v":"Управление, эксплуатация и обслуживание многоквартирного дома"},"03","из числа лиц с ОВЗ (из строки 02): инвалиды и дети-инвалиды",0,0,0,0,0,0,0,0,0,0,0,0,0,0,0,0,0,0,0,0,0,0,0,0,0,0,null,"проверка пройдена"]
["ГАПОУ \"Казанский колледж строительства,архитектуры и городского хозяйства\"","08.02.11",{"$f":"VLOOKUP(B42,'Коды программ'!$A$2:$B$578,2,FALSE)","v":"Управление, эксплуатация и обслуживание многоквартирного дома"},"04","Инвалиды и дети-инвалиды (кроме учтенных в строке 03)",0,0,0,0,0,0,0,0,0,0,0,0,0,0,0,0,0,0,0,0,0,0,0,0,0,0,null,"проверка пройдена"]
["ГАПОУ \"Казанский колледж строительства,архитектуры и городского хозяйства\"","08.02.11",{"$f":"VLOOKUP(B43,'Коды программ'!$A$2:$B$578,2,FALSE)","v":"Управление, эксплуатация и обслуживание многоквартирного дома"},"05","Имеют договор о целевом обучении",0,0,0,0,0,0,0,0,0,0,0,0,0,0,0,0,0,0,0,0,0,0,0,0,0,0,null,"проверка пройдена"]
["ГАПОУ \"Казанский колледж строительства,архитектуры и городского хозяйства\"","08.02.11",{"$f":"VLOOKUP(B44,'[1]Коды программ'!$A$2:$B$578,2,FALSE)","v":"Управление, эксплуатация и обслуживание многоквартирного дома"},"06","Автосумма строк 02 и 04 - Всего (общая численность выпускников из числа лиц с ОВЗ, инвалидов и детей-инвалидов) ",{"$f":"F40+F42","v":0},{"$f":"G40+G42","v":0},0,0,0,0,0,0,0,0,0,0,0,0,0,0,0,0,0,0,0,0,0,0,0,0,null,{"$f":"IF(F44=G44+J44+K44+L44+M44+N44+O44+P44+Q44+R44+S44+T44+U44+V44+W44+X44+Y44+Z44+AA44+AB44+AC44+AD44+AE44,\"проверка пройдена\",\"ВНИМАНИЕ! Сумма по строке не сходится с общей численностью выпускников! Исправьте ошибку в расчетах, пока это сообщение не исчезнет!\")","v":"проверка пройдена"}]
["ГАПОУ \"Казанский колледж строительства,архитектуры и городского хозяйства\"","08.02.11",{"$f":"VLOOKUP(B45,'[1]Коды программ'!$A$2:$B$578,2,FALSE)","v":"Управление, эксплуатация и обслуживание многоквартирного дома"},"07","из общей численности выпускников из числа лиц с ОВЗ, инвалидов и детей-инвалидов (из строки 06): с нарушениями:\n           зрения",0,0,0,0,0,0,0,0,0,0,0,0,0,0,0,0,0,0,0,0,0,0,0,0,0,0,null,{"$f":"IF(F45=G45+J45+K45+L45+M45+N45+O45+P45+Q45+R45+S45+T45+U45+V45+W45+X45+Y45+Z45+AA45+AB45+AC45+AD45+AE45,\"проверка пройдена\",\"ВНИМАНИЕ! Сумма по строке не сходится с общей численностью выпускников! Исправьте ошибку в расчетах, пока это сообщение не исчезнет!\")","v":"проверка пройдена"}]
["ГАПОУ \"Казанский колледж строительства,архитектуры и городского хозяйства\"","08.02.11",{"$f":"VLOOKUP(B46,'[1]Коды программ'!$A$2:$B$578,2,FALSE)","v":"Управление, эксплуатация и обслуживание многоквартирного дома"},"08","           слуха",0,0,0,0,0,0,0,0,0,0,0,0,0,0,0,0,0,0,0,0,0,0,0,0,0,0,null,{"$f":"IF(F46=G46+J46+K46+L46+M46+N46+O46+P46+Q46+R46+S46+T46+U46+V46+W46+X46+Y46+Z46+AA46+AB46+AC46+AD46+AE46,\"проверка пройдена\",\"ВНИМАНИЕ! Сумма по строке не сходится с общей численностью выпускников! Исправьте ошибку в расчетах, пока это сообщение не исчезнет!\")","v":"проверка пройдена"}]
["ГАПОУ \"Казанский колледж строительства,архитектуры и городского хозяйства\"","08.02.11",{"$f":"VLOOKUP(B47,'[1]Коды программ'!$A$2:$B$578,2,FALSE)","v":"Управление, эксплуатация и обслуживание многоквартирного дома"},"09","           опорно-двигательного аппарата",0,0,0,0,0,0,0,0,0,0,0,0,0,0,0,0,0,0,0,0,0,0,0,0,0,0,null,"проверка пройдена"]
["ГАПОУ \"Казанский колледж строительства,архитектуры и городского хозяйства\"","08.02.11",{"$f":"VLOOKUP(B48,'[1]Коды программ'!$A$2:$B$578,2,FALSE)","v":"Управление, эксплуатация и обслуживание многоквартирного дома"},"10","           тяжелыми нарушениями речи",0,0,0,0,0,0,0,0,0,0,0,0,0,0,0,0,0,0,0,0,0,0,0,0,0,0,null,"проверка пройдена"]
["ГАПОУ \"Казанский колледж строительства,архитектуры и городского хозяйства\"","08.02.11",{"$f":"VLOOKUP(B49,'[1]Коды программ'!$A$2:$B$578,2,FALSE)","v":"Управление, эксплуатация и обслуживание многоквартирного дома"},"11","           задержкой психического развития",0,0,0,0,0,0,0,0,0,0,0,0,0,0,0,0,0,0,0,0,0,0,0,0,0,0,null,{"$f":"IF(F49=G49+J49+K49+L49+M49+N49+O49+P49+Q49+R49+S49+T49+U49+V49+W49+X49+Y49+Z49+AA49+AB49+AC49+AD49+AE49,\"проверка пройдена\",\"ВНИМАНИЕ! Сумма по строке не сходится с общей численностью выпускников! Исправьте ошибку в расчетах, пока это сообщение не исчезнет!\")","v":"проверка пройдена"}]
["ГАПОУ \"Казанский колледж строительства,архитектуры и городского хозяйства\"","08.02.11",{"$f":"VLOOKUP(B50,'[1]Коды программ'!$A$2:$B$578,2,FALSE)","v":"Управление, эксплуатация и обслуживание многоквартирного дома"},"12","           расстройствами аутистического\n           спектра",0,0,0,0,0,0,0,0,0,0,0,0,0,0,0,0,0,0,0,0,0,0,0,0,0,0,null,{"$f":"IF(F50=G50+J50+K50+L50+M50+N50+O50+P50+Q50+R50+S50+T50+U50+V50+W50+X50+Y50+Z50+AA50+AB50+AC50+AD50+AE50,\"проверка пройдена\",\"ВНИМАНИЕ! Сумма по строке не сходится с общей численностью выпускников! Исправьте ошибку в расчетах, пока это сообщение не исчезнет!\")","v":"проверка пройдена"}]
["ГАПОУ \"Казанский колледж строительства,архитектуры и городского хозяйства\"","08.02.11",{"$f":"VLOOKUP(B51,'[1]Коды программ'!$A$2:$B$578,2,FALSE)","v":"Управление, эксплуатация и обслуживание многоквартирного дома"},"13","           с инвалидностью вследствие\n           других причин",0,0,0,0,0,0,0,0,0,0,0,0,0,0,0,0,0,0,0,0,0,0,0,0,0,0,null,"проверка пройдена"]
["ГАПОУ \"Казанский колледж строительства,архитектуры и городского хозяйства\"","08.02.11",{"$f":"VLOOKUP(B52,'[1]Коды программ'!$A$2:$B$578,2,FALSE)","v":"Управление, эксплуатация и обслуживание многоквартирного дома"},"14","из общей численности выпускников из числа лиц с ОВЗ, инвалидов и детей-инвалидов (из строки 06): имеют договор о целевом обучении",0,0,0,0,0,0,0,0,0,0,0,0,0,0,0,0,0,0,0,0,0,0,0,0,0,0,null,"проверка пройдена"]
["ГАПОУ \"Казанский колледж строительства,архитектуры и городского хозяйства\"","08.02.11",{"$f":"VLOOKUP(B53,'[1]Коды программ'!$A$2:$B$578,2,FALSE)","v":"Управление, эксплуатация и обслуживание многоквартирного дома"},"15","из общей численности выпускников из числа лиц с ОВЗ, инвалидов и детей-инвалидов (из строки 06): принимали участие в чемпионате «Абилимпикс»",0,0,0,0,0,0,0,0,0,0,0,0,0,0,0,0,0,0,0,0,0,0,0,0,0,0,null,"проверка пройдена"]
["ГАПОУ \"Казанский колледж строительства,архитектуры и городского хозяйства\"","38.02.04",{"$f":"VLOOKUP(B54,'Коды программ'!$A$2:$B$578,2,FALSE)","v":"Коммерция (по отраслям)"},"01","Всего (общая численность выпускников)",19,15,10,0,0,0,1,0,0,1,2,0,0,0,0,0,0,0,0,0,0,0,0,0,0,0,null,{"$f":"IF(F54=G54+J54+K54+L54+M54+N54+O54+P54+Q54+R54+S54+T54+U54+V54+W54+X54+Y54+Z54+AA54+AB54+AC54+AD54+AE54,\"проверка пройдена\",\"ВНИМАНИЕ! Сумма по строке не сходится с общей численностью выпускников! Исправьте ошибку в расчетах, пока это сообщение не исчезнет!\")","v":"проверка пройдена"}]
["ГАПОУ \"Казанский колледж строительства,архитектуры и городского хозяйства\"","38.02.04",{"$f":"VLOOKUP(B55,'Коды программ'!$A$2:$B$578,2,FALSE)","v":"Коммерция (по отраслям)"},"02","из общей численности выпускников (из строки 01): лица с ОВЗ",0,0,0,0,0,0,0,0,0,0,0,0,0,0,0,0,0,0,0,0,0,0,0,0,0,0,null,{"$f":"IF(F66=G55+J55+K55+L55+M55+N55+O55+P55+Q55+R55+S55+T55+U55+V55+W55+X55+Y55+Z55+AA55+AB55+AC55+AD55+AE55,\"проверка пройдена\",\"ВНИМАНИЕ! Сумма по строке не сходится с общей численностью выпускников! Исправьте ошибку в расчетах, пока это сообщение не исчезнет!\")","v":"проверка пройдена"}]
["ГАПОУ \"Казанский колледж строительства,архитектуры и городского хозяйства\"","38.02.04",{"$f":"VLOOKUP(B56,'Коды программ'!$A$2:$B$578,2,FALSE)","v":"Коммерция (по отраслям)"},"03","из числа лиц с ОВЗ (из строки 02): инвалиды и дети-инвалиды",0,0,0,0,0,0,0,0,0,0,0,0,0,0,0,0,0,0,0,0,0,0,0,0,0,0,null,{"$f":"IF(F56=G56+J56+K56+L56+M56+N56+O56+P56+Q56+R56+S56+T56+U56+V56+W56+X56+Y56+Z56+AA56+AB56+AC56+AD56+AE56,\"проверка пройдена\",\"ВНИМАНИЕ! Сумма по строке не сходится с общей численностью выпускников! Исправьте ошибку в расчетах, пока это сообщение не исчезнет!\")","v":"проверка пройдена"}]
["ГАПОУ \"Казанский колледж строительства,архитектуры и городского хозяйства\"","38.02.04",{"$f":"VLOOKUP(B57,'Коды программ'!$A$2:$B$578,2,FALSE)","v":"Коммерция (по отраслям)"},"04","Инвалиды и дети-инвалиды (кроме учтенных в строке 03)",0,0,0,0,0,0,0,0,0,0,0,0,0,0,0,0,0,0,0,0,0,0,0,0,0,0,null,{"$f":"IF(F57=G57+Y57+V57+W57+X57+#REF!+O57+P57+Q57+R57+S57+T57+U57+#REF!+#REF!+#REF!+#REF!+Z57+AA57+AB57+AC57+AD57+AE57,\"проверка пройдена\",\"ВНИМАНИЕ! Сумма по строке не сходится с общей численностью выпускников! Исправьте ошибку в расчетах, пока это сообщение не исчезнет!\")","v":{"$error":"#REF!"}}]
["ГАПОУ \"Казанский колледж строительства,архитектуры и городского хозяйства\"","38.02.04",{"$f":"VLOOKUP(B58,'Коды программ'!$A$2:$B$578,2,FALSE)","v":"Коммерция (по отраслям)"},"05","Имеют договор о целевом обучении",0,0,0,0,0,0,0,0,0,0,0,0,0,0,0,0,0,0,0,0,0,0,0,0,0,0,null,"проверка пройдена"]
["ГАПОУ \"Казанский колледж строительства,архитектуры и городского хозяйства\"","38.02.04",{"$f":"VLOOKUP(B59,'[1]Коды программ'!$A$2:$B$578,2,FALSE)","v":"Коммерция (по отраслям)"},"06","Автосумма строк 02 и 04 - Всего (общая численность выпускников из числа лиц с ОВЗ, инвалидов и детей-инвалидов) ",0,0,0,0,0,0,0,0,0,0,0,0,0,0,0,0,0,0,0,0,0,0,0,{"$f":"AC55+AC57","v":0},0,0,null,{"$f":"IF(F59=G59+J59+K59+L59+M59+N59+O59+P59+Q59+R59+S59+T59+U59+V59+W59+X59+Y59+Z59+AA59+AB59+AC59+AD59+AE59,\"проверка пройдена\",\"ВНИМАНИЕ! Сумма по строке не сходится с общей численностью выпускников! Исправьте ошибку в расчетах, пока это сообщение не исчезнет!\")","v":"проверка пройдена"}]
["ГАПОУ \"Казанский колледж строительства,архитектуры и городского хозяйства\"","38.02.04",{"$f":"VLOOKUP(B60,'[1]Коды программ'!$A$2:$B$578,2,FALSE)","v":"Коммерция (по отраслям)"},"07","из общей численности выпускников из числа лиц с ОВЗ, инвалидов и детей-инвалидов (из строки 06): с нарушениями:\n           зрения",0,0,0,0,0,0,0,0,0,0,0,0,0,0,0,0,0,0,0,0,0,0,0,0,0,0,null,{"$f":"IF(F60=G60+J60+K60+L60+M60+N60+O60+P60+Q60+R60+S60+T60+U60+V60+W60+X60+Y60+Z60+AA60+AB60+AC60+AD60+AE60,\"проверка пройдена\",\"ВНИМАНИЕ! Сумма по строке не сходится с общей численностью выпускников! Исправьте ошибку в расчетах, пока это сообщение не исчезнет!\")","v":"проверка пройдена"}]
["ГАПОУ \"Казанский колледж строительства,архитектуры и городского хозяйства\"","38.02.04",{"$f":"VLOOKUP(B61,'[1]Коды программ'!$A$2:$B$578,2,FALSE)","v":"Коммерция (по отраслям)"},"08","           слуха",0,0,0,0,0,0,0,0,0,0,0,0,0,0,0,0,0,0,0,0,0,0,0,0,0,0,null,{"$f":"IF(F61=G61+J61+K61+L61+M61+N61+O61+P61+Q61+R61+S61+T61+U61+V61+W61+X61+Y61+Z61+AA61+AB61+AC61+AD61+AE61,\"проверка пройдена\",\"ВНИМАНИЕ! Сумма по строке не сходится с общей численностью выпускников! Исправьте ошибку в расчетах, пока это сообщение не исчезнет!\")","v":"проверка пройдена"}]
["ГАПОУ \"Казанский колледж строительства,архитектуры и городского хозяйства\"","38.02.04",{"$f":"VLOOKUP(B62,'[1]Коды программ'!$A$2:$B$578,2,FALSE)","v":"Коммерция (по отраслям)"},"09","           опорно-двигательного аппарата",0,0,0,0,0,0,0,0,0,0,0,0,0,0,0,0,0,0,0,0,0,0,0,0,0,0,null,"проверка пройдена"]
["ГАПОУ \"Казанский колледж строительства,архитектуры и городского хозяйства\"","38.02.04",{"$f":"VLOOKUP(B63,'[1]Коды программ'!$A$2:$B$578,2,FALSE)","v":"Коммерция (по отраслям)"},"10","           тяжелыми нарушениями речи",0,0,0,0,0,0,0,0,0,0,0,0,0,0,0,0,0,0,0,0,0,0,0,0,0,0,null,"проверка пройдена"]
["ГАПОУ \"Казанский колледж строительства,архитектуры и городского хозяйства\"","38.02.04",{"$f":"VLOOKUP(B64,'[1]Коды программ'!$A$2:$B$578,2,FALSE)","v":"Коммерция (по отраслям)"},"11","           задержкой психического развития",0,0,0,0,0,0,0,0,0,0,0,0,0,0,0,0,0,0,0,0,0,0,0,0,0,0,null,{"$f":"IF(F64=G64+J64+K64+L64+M64+N64+O64+P64+Q64+R64+S64+T64+U64+V64+W64+X64+Y64+Z64+AA64+AB64+AC64+AD64+AE64,\"проверка пройдена\",\"ВНИМАНИЕ! Сумма по строке не сходится с общей численностью выпускников! Исправьте ошибку в расчетах, пока это сообщение не исчезнет!\")","v":"проверка пройдена"}]
["ГАПОУ \"Казанский колледж строительства,архитектуры и городского хозяйства\"","38.02.04",{"$f":"VLOOKUP(B65,'[1]Коды программ'!$A$2:$B$578,2,FALSE)","v":"Коммерция (по отраслям)"},"12","           расстройствами аутистического\n           спектра",0,0,0,0,0,0,0,0,0,0,0,0,0,0,0,0,0,0,0,0,0,0,0,0,0,0,null,{"$f":"IF(F65=G65+J65+K65+L65+M65+N65+O65+P65+Q65+R65+S65+T65+U65+V65+W65+X65+Y65+Z65+AA65+AB65+AC65+AD65+AE65,\"проверка пройдена\",\"ВНИМАНИЕ! Сумма по строке не сходится с общей численностью выпускников! Исправьте ошибку в расчетах, пока это сообщение не исчезнет!\")","v":"проверка пройдена"}]
["ГАПОУ \"Казанский колледж строительства,архитектуры и городского хозяйства\"","38.02.04",{"$f":"VLOOKUP(B66,'[1]Коды программ'!$A$2:$B$578,2,FALSE)","v":"Коммерция (по отраслям)"},"13","           с инвалидностью вследствие\n           других причин",0,0,0,0,0,0,0,0,0,0,0,0,0,0,0,0,0,0,0,0,0,0,0,0,0,0,null,"проверка пройдена"]
["ГАПОУ \"Казанский колледж строительства,архитектуры и городского хозяйства\"","38.02.04",{"$f":"VLOOKUP(B67,'[1]Коды программ'!$A$2:$B$578,2,FALSE)","v":"Коммерция (по отраслям)"},"14","из общей численности выпускников из числа лиц с ОВЗ, инвалидов и детей-инвалидов (из строки 06): имеют договор о целевом обучении",0,0,0,0,0,0,0,0,0,0,0,0,0,0,0,0,0,0,0,0,0,0,0,0,0,0,null,"проверка пройдена"]
["ГАПОУ \"Казанский колледж строительства,архитектуры и городского хозяйства\"","38.02.04",{"$f":"VLOOKUP(B68,'[1]Коды программ'!$A$2:$B$578,2,FALSE)","v":"Коммерция (по отраслям)"},"15","из общей численности выпускников из числа лиц с ОВЗ, инвалидов и детей-инвалидов (из строки 06): принимали участие в чемпионате «Абилимпикс»",0,0,0,0,0,0,0,0,0,0,0,0,0,0,0,0,0,0,0,0,0,0,0,0,0,0,null,"проверка пройдена"]
["ГАПОУ \"Казанский колледж строительства,архитектуры и городского хозяйства\"","08.02.07",{"$f":"VLOOKUP(B69,'Коды программ'!$A$2:$B$578,2,FALSE)","v":"Монтаж и эксплуатация внутренних сантехнических устройств, кондиционирования воздуха и вентиляции"},"01","Всего (общая численность выпускников)",18,13,5,0,0,0,1,3,0,0,1,0,0,0,0,0,0,0,0,0,0,0,0,0,0,0,null,{"$f":"IF(F69=G69+J69+K69+L69+M69+N69+O69+P69+Q69+R69+S69+T69+U69+V69+W69+X69+Y69+Z69+AA69+AB69+AC69+AD69+AE69,\"проверка пройдена\",\"ВНИМАНИЕ! Сумма по строке не сходится с общей численностью выпускников! Исправьте ошибку в расчетах, пока это сообщение не исчезнет!\")","v":"проверка пройдена"}]
["ГАПОУ \"Казанский колледж строительства,архитектуры и городского хозяйства\"","08.02.07",{"$f":"VLOOKUP(B70,'Коды программ'!$A$2:$B$578,2,FALSE)","v":"Монтаж и эксплуатация внутренних сантехнических устройств, кондиционирования воздуха и вентиляции"},"02","из общей численности выпускников (из строки 01): лица с ОВЗ",0,0,0,0,0,0,0,0,0,0,0,0,0,0,0,0,0,0,0,0,0,0,0,0,0,0,null,{"$f":"IF(F70=G70+J70+K70+L70+M70+N70+O70+P70+Q70+R70+S70+T70+U70+V70+W70+X70+Y70+Z70+AA70+AB70+AC70+AD70+AE70,\"проверка пройдена\",\"ВНИМАНИЕ! Сумма по строке не сходится с общей численностью выпускников! Исправьте ошибку в расчетах, пока это сообщение не исчезнет!\")","v":"проверка пройдена"}]
["ГАПОУ \"Казанский колледж строительства,архитектуры и городского хозяйства\"","08.02.07",{"$f":"VLOOKUP(B71,'Коды программ'!$A$2:$B$578,2,FALSE)","v":"Монтаж и эксплуатация внутренних сантехнических устройств, кондиционирования воздуха и вентиляции"},"03","из числа лиц с ОВЗ (из строки 02): инвалиды и дети-инвалиды",0,0,0,0,0,0,0,0,0,0,0,0,0,0,0,0,0,0,0,0,0,0,0,0,0,0,null,"проверка пройдена"]
["ГАПОУ \"Казанский колледж строительства,архитектуры и городского хозяйства\"","08.02.07",{"$f":"VLOOKUP(B72,'Коды программ'!$A$2:$B$578,2,FALSE)","v":"Монтаж и эксплуатация внутренних сантехнических устройств, кондиционирования воздуха и вентиляции"},"04","Инвалиды и дети-инвалиды (кроме учтенных в строке 03)",0,0,0,0,0,0,0,0,0,0,0,0,0,0,0,0,0,0,0,0,0,0,0,0,0,0,null,"проверка пройдена"]
["ГАПОУ \"Казанский колледж строительства,архитектуры и городского хозяйства\"","08.02.07",{"$f":"VLOOKUP(B73,'Коды программ'!$A$2:$B$578,2,FALSE)","v":"Монтаж и эксплуатация внутренних сантехнических устройств, кондиционирования воздуха и вентиляции"},"05","Имеют договор о целевом обучении",0,0,0,0,0,0,0,0,0,0,0,0,0,0,0,0,0,0,0,0,0,0,0,0,0,0,null,"проверка пройдена"]
["ГАПОУ \"Казанский колледж строительства,архитектуры и городского хозяйства\"","08.02.07",{"$f":"VLOOKUP(B74,'[1]Коды программ'!$A$2:$B$578,2,FALSE)","v":"Монтаж и эксплуатация внутренних сантехнических устройств, кондиционирования воздуха и вентиляции"},"06","Автосумма строк 02 и 04 - Всего (общая численность выпускников из числа лиц с ОВЗ, инвалидов и детей-инвалидов) ",{"$f":"F70+F72","v":0},{"$f":"G70+G72","v":0},0,0,0,0,0,0,0,0,0,0,0,0,0,0,0,0,0,0,0,0,0,0,0,0,null,{"$f":"IF(F74=G74+J74+K74+L74+M74+N74+O74+P74+Q74+R74+S74+T74+U74+V74+W74+X74+Y74+Z74+AA74+AB74+AC74+AD74+AE74,\"проверка пройдена\",\"ВНИМАНИЕ! Сумма по строке не сходится с общей численностью выпускников! Исправьте ошибку в расчетах, пока это сообщение не исчезнет!\")","v":"проверка пройдена"}]
["ГАПОУ \"Казанский колледж строительства,архитектуры и городского хозяйства\"","08.02.07",{"$f":"VLOOKUP(B75,'[1]Коды программ'!$A$2:$B$578,2,FALSE)","v":"Монтаж и эксплуатация внутренних сантехнических устройств, кондиционирования воздуха и вентиляции"},"07","из общей численности выпускников из числа лиц с ОВЗ, инвалидов и детей-инвалидов (из строки 06): с нарушениями:\n           зрения",0,0,0,0,0,0,0,0,0,0,0,0,0,0,0,0,0,0,0,0,0,0,0,0,0,0,null,{"$f":"IF(F75=G75+J75+K75+L75+M75+N75+O75+P75+Q75+R75+S75+T75+U75+V75+W75+X75+Y75+Z75+AA75+AB75+AC75+AD75+AE75,\"проверка пройдена\",\"ВНИМАНИЕ! Сумма по строке не сходится с общей численностью выпускников! Исправьте ошибку в расчетах, пока это сообщение не исчезнет!\")","v":"проверка пройдена"}]
["ГАПОУ \"Казанский колледж строительства,архитектуры и городского хозяйства\"","08.02.07",{"$f":"VLOOKUP(B76,'[1]Коды программ'!$A$2:$B$578,2,FALSE)","v":"Монтаж и эксплуатация внутренних сантехнических устройств, кондиционирования воздуха и вентиляции"},"08","           слуха",0,0,0,0,0,0,0,0,0,0,0,0,0,0,0,0,0,0,0,0,0,0,0,0,0,0,null,{"$f":"IF(F76=G76+J76+K76+L76+M76+N76+O76+P76+Q76+R76+S76+T76+U76+V76+W76+X76+Y76+Z76+AA76+AB76+AC76+AD76+AE76,\"проверка пройдена\",\"ВНИМАНИЕ! Сумма по строке не сходится с общей численностью выпускников! Исправьте ошибку в расчетах, пока это сообщение не исчезнет!\")","v":"проверка пройдена"}]
["ГАПОУ \"Казанский колледж строительства,архитектуры и городского хозяйства\"","08.02.07",{"$f":"VLOOKUP(B77,'[1]Коды программ'!$A$2:$B$578,2,FALSE)","v":"Монтаж и эксплуатация внутренних сантехнических устройств, кондиционирования воздуха и вентиляции"},"09","           опорно-двигательного аппарата",0,0,0,0,0,0,0,0,0,0,0,0,0,0,0,0,0,0,0,0,0,0,0,0,0,0,null,"проверка пройдена"]
["ГАПОУ \"Казанский колледж строительства,архитектуры и городского хозяйства\"","08.02.07",{"$f":"VLOOKUP(B78,'[1]Коды программ'!$A$2:$B$578,2,FALSE)","v":"Монтаж и эксплуатация внутренних сантехнических устройств, кондиционирования воздуха и вентиляции"},"10","           тяжелыми нарушениями речи",0,0,0,0,0,0,0,0,0,0,0,0,0,0,0,0,0,0,0,0,0,0,0,0,0,0,null,"проверка пройдена"]
["ГАПОУ \"Казанский колледж строительства,архитектуры и городского хозяйства\"","08.02.07",{"$f":"VLOOKUP(B79,'[1]Коды программ'!$A$2:$B$578,2,FALSE)","v":"Монтаж и эксплуатация внутренних сантехнических устройств, кондиционирования воздуха и вентиляции"},"11","           задержкой психического развития",0,0,0,0,0,0,0,0,0,0,0,0,0,0,0,0,0,0,0,0,0,0,0,0,0,0,null,{"$f":"IF(F79=G79+J79+K79+L79+M79+N79+O79+P79+Q79+R79+S79+T79+U79+V79+W79+X79+Y79+Z79+AA79+AB79+AC79+AD79+AE79,\"проверка пройдена\",\"ВНИМАНИЕ! Сумма по строке не сходится с общей численностью выпускников! Исправьте ошибку в расчетах, пока это сообщение не исчезнет!\")","v":"проверка пройдена"}]
["ГАПОУ \"Казанский колледж строительства,архитектуры и городского хозяйства\"","08.02.07",{"$f":"VLOOKUP(B80,'[1]Коды программ'!$A$2:$B$578,2,FALSE)","v":"Монтаж и эксплуатация внутренних сантехнических устройств, кондиционирования воздуха и вентиляции"},"12","           расстройствами аутистического\n           спектра",0,0,0,0,0,0,0,0,0,0,0,0,0,0,0,0,0,0,0,0,0,0,0,0,0,0,null,{"$f":"IF(F80=G80+J80+K80+L80+M80+N80+O80+P80+Q80+R80+S80+T80+U80+V80+W80+X80+Y80+Z80+AA80+AB80+AC80+AD80+AE80,\"проверка пройдена\",\"ВНИМАНИЕ! Сумма по строке не сходится с общей численностью выпускников! Исправьте ошибку в расчетах, пока это сообщение не исчезнет!\")","v":"проверка пройдена"}]
["ГАПОУ \"Казанский колледж строительства,архитектуры и городского хозяйства\"","08.02.07",{"$f":"VLOOKUP(B81,'[1]Коды программ'!$A$2:$B$578,2,FALSE)","v":"Монтаж и эксплуатация внутренних сантехнических устройств, кондиционирования воздуха и вентиляции"},"13","           с инвалидностью вследствие\n           других причин",0,0,0,0,0,0,0,0,0,0,0,0,0,0,0,0,0,0,0,0,0,0,0,0,0,0,null,"проверка пройдена"]
["ГАПОУ \"Казанский колледж строительства,архитектуры и городского хозяйства\"","08.02.07",{"$f":"VLOOKUP(B82,'[1]Коды программ'!$A$2:$B$578,2,FALSE)","v":"Монтаж и эксплуатация внутренних сантехнических устройств, кондиционирования воздуха и вентиляции"},"14","из общей численности выпускников из числа лиц с ОВЗ, инвалидов и детей-инвалидов (из строки 06): имеют договор о целевом обучении",0,0,0,0,0,0,0,0,0,0,0,0,0,0,0,0,0,0,0,0,0,0,0,0,0,0,null,"проверка пройдена"]
["ГАПОУ \"Казанский колледж строительства,архитектуры и городского хозяйства\"","08.02.07",{"$f":"VLOOKUP(B83,'[1]Коды программ'!$A$2:$B$578,2,FALSE)","v":"Монтаж и эксплуатация внутренних сантехнических устройств, кондиционирования воздуха и вентиляции"},"15","из общей численности выпускников из числа лиц с ОВЗ, инвалидов и детей-инвалидов (из строки 06): принимали участие в чемпионате «Абилимпикс»",0,0,0,0,0,0,0,0,0,0,0,0,0,0,0,0,0,0,0,0,0,0,0,0,0,0,null,"проверка пройдена"]
["ГАПОУ \"Казанский колледж строительства,архитектуры и городского хозяйства\"","43.02.08",{"$f":"VLOOKUP(B84,'Коды программ'!$A$2:$B$578,2,FALSE)","v":"Сервис домашнего и коммунального хозяйства"},"01","Всего (общая численность выпускников)",12,10,3,0,0,0,1,0,0,0,1,0,0,0,0,0,0,0,0,0,0,0,0,0,0,0,null,{"$f":"IF(F84=G84+J84+K84+L84+M84+N84+O84+P84+Q84+R84+S84+T84+U84+V84+W84+X84+Y84+Z84+AA84+AB84+AC84+AD84+AE84,\"проверка пройдена\",\"ВНИМАНИЕ! Сумма по строке не сходится с общей численностью выпускников! Исправьте ошибку в расчетах, пока это сообщение не исчезнет!\")","v":"проверка пройдена"}]
["ГАПОУ \"Казанский колледж строительства,архитектуры и городского хозяйства\"","43.02.08",{"$f":"VLOOKUP(B85,'Коды программ'!$A$2:$B$578,2,FALSE)","v":"Сервис домашнего и коммунального хозяйства"},"02","из общей численности выпускников (из строки 01): лица с ОВЗ",0,0,0,0,0,0,0,0,0,0,0,0,0,0,0,0,0,0,0,0,0,0,0,0,0,0,null,{"$f":"IF(F85=G85+J85+K85+L85+M85+N85+O85+P85+Q85+R85+S85+T85+U85+V85+W85+X85+Y85+Z85+AA85+AB85+AC85+AD85+AE85,\"проверка пройдена\",\"ВНИМАНИЕ! Сумма по строке не сходится с общей численностью выпускников! Исправьте ошибку в расчетах, пока это сообщение не исчезнет!\")","v":"проверка пройдена"}]
["ГАПОУ \"Казанский колледж строительства,архитектуры и городского хозяйства\"","43.02.08",{"$f":"VLOOKUP(B86,'Коды программ'!$A$2:$B$578,2,FALSE)","v":"Сервис домашнего и коммунального хозяйства"},"03","из числа лиц с ОВЗ (из строки 02): инвалиды и дети-инвалиды",0,0,0,0,0,0,0,0,0,0,0,0,0,0,0,0,0,0,0,0,0,0,0,0,0,0,null,"проверка пройдена"]
["ГАПОУ \"Казанский колледж строительства,архитектуры и городского хозяйства\"","43.02.08",{"$f":"VLOOKUP(B87,'Коды программ'!$A$2:$B$578,2,FALSE)","v":"Сервис домашнего и коммунального хозяйства"},"04","Инвалиды и дети-инвалиды (кроме учтенных в строке 03)",0,0,0,0,0,0,0,0,0,0,0,0,0,0,0,0,0,0,0,0,0,0,0,0,0,0,null,"проверка пройдена"]
["ГАПОУ \"Казанский колледж строительства,архитектуры и городского хозяйства\"","43.02.08",{"$f":"VLOOKUP(B88,'Коды программ'!$A$2:$B$578,2,FALSE)","v":"Сервис домашнего и коммунального хозяйства"},"05","Имеют договор о целевом обучении",0,0,0,0,0,0,0,0,0,0,0,0,0,0,0,0,0,0,0,0,0,0,0,0,0,0,null,"проверка пройдена"]
["ГАПОУ \"Казанский колледж строительства,архитектуры и городского хозяйства\"","43.02.08",{"$f":"VLOOKUP(B89,'[1]Коды программ'!$A$2:$B$578,2,FALSE)","v":"Сервис домашнего и коммунального хозяйства"},"06","Автосумма строк 02 и 04 - Всего (общая численность выпускников из числа лиц с ОВЗ, инвалидов и детей-инвалидов) ",{"$f":"F85+F87","v":0},{"$f":"G85+G87","v":0},0,0,0,0,0,0,0,0,0,0,0,0,0,0,0,0,0,0,0,0,0,0,0,0,null,{"$f":"IF(F89=G89+J89+K89+L89+M89+N89+O89+P89+Q89+R89+S89+T89+U89+V89+W89+X89+Y89+Z89+AA89+AB89+AC89+AD89+AE89,\"проверка пройдена\",\"ВНИМАНИЕ! Сумма по строке не сходится с общей численностью выпускников! Исправьте ошибку в расчетах, пока это сообщение не исчезнет!\")","v":"проверка пройдена"}]
["ГАПОУ \"Казанский колледж строительства,архитектуры и городского хозяйства\"","43.02.08",{"$f":"VLOOKUP(B90,'[1]Коды программ'!$A$2:$B$578,2,FALSE)","v":"Сервис домашнего и коммунального хозяйства"},"07","из общей численности выпускников из числа лиц с ОВЗ, инвалидов и детей-инвалидов (из строки 06): с нарушениями:\n           зрения",0,0,0,0,0,0,0,0,0,0,0,0,0,0,0,0,0,0,0,0,0,0,0,0,0,null,null,{"$f":"IF(F90=G90+J90+K90+L90+M90+N90+O90+P90+Q90+R90+S90+T90+U90+V90+W90+X90+Y90+Z90+AA90+AB90+AC90+AD90+AE90,\"проверка пройдена\",\"ВНИМАНИЕ! Сумма по строке не сходится с общей численностью выпускников! Исправьте ошибку в расчетах, пока это сообщение не исчезнет!\")","v":"проверка пройдена"}]
["ГАПОУ \"Казанский колледж строительства,архитектуры и городского хозяйства\"","43.02.08",{"$f":"VLOOKUP(B91,'[1]Коды программ'!$A$2:$B$578,2,FALSE)","v":"Сервис домашнего и коммунального хозяйства"},"08","           слуха",0,0,0,0,0,0,0,0,0,0,0,0,0,0,0,0,0,0,0,0,0,0,0,0,0,null,null,{"$f":"IF(F91=G91+J91+K91+L91+M91+N91+O91+P91+Q91+R91+S91+T91+U91+V91+W91+X91+Y91+Z91+AA91+AB91+AC91+AD91+AE91,\"проверка пройдена\",\"ВНИМАНИЕ! Сумма по строке не сходится с общей численностью выпускников! Исправьте ошибку в расчетах, пока это сообщение не исчезнет!\")","v":"проверка пройдена"}]
["ГАПОУ \"Казанский колледж строительства,архитектуры и городского хозяйства\"","43.02.08",{"$f":"VLOOKUP(B92,'[1]Коды программ'!$A$2:$B$578,2,FALSE)","v":"Сервис домашнего и коммунального хозяйства"},"09","           опорно-двигательного аппарата",0,0,0,0,0,0,0,0,0,0,0,0,0,0,0,0,0,0,0,0,0,0,0,0,0,null,null,"проверка пройдена"]
["ГАПОУ \"Казанский колледж строительства,архитектуры и городского хозяйства\"","43.02.08",{"$f":"VLOOKUP(B93,'[1]Коды программ'!$A$2:$B$578,2,FALSE)","v":"Сервис домашнего и коммунального хозяйства"},"10","           тяжелыми нарушениями речи",0,0,0,0,0,0,0,0,0,0,0,0,0,0,0,0,0,0,0,0,0,0,0,0,0,null,null,"проверка пройдена"]
["ГАПОУ \"Казанский колледж строительства,архитектуры и городского хозяйства\"","43.02.08",{"$f":"VLOOKUP(B94,'[1]Коды программ'!$A$2:$B$578,2,FALSE)","v":"Сервис домашнего и коммунального хозяйства"},"11","           задержкой психического развития",0,0,0,0,0,0,0,0,0,0,0,0,0,0,0,0,0,0,0,0,0,0,0,0,0,null,null,{"$f":"IF(F94=G94+J94+K94+L94+M94+N94+O94+P94+Q94+R94+S94+T94+U94+V94+W94+X94+Y94+Z94+AA94+AB94+AC94+AD94+AE94,\"проверка пройдена\",\"ВНИМАНИЕ! Сумма по строке не сходится с общей численностью выпускников! Исправьте ошибку в расчетах, пока это сообщение не исчезнет!\")","v":"проверка пройдена"}]
["ГАПОУ \"Казанский колледж строительства,архитектуры и городского хозяйства\"","43.02.08",{"$f":"VLOOKUP(B95,'[1]Коды программ'!$A$2:$B$578,2,FALSE)","v":"Сервис домашнего и коммунального хозяйства"},"12","           расстройствами аутистического\n           спектра",0,0,0,0,0,0,0,0,0,0,0,0,0,0,0,0,0,0,0,0,0,0,0,0,0,null,null,{"$f":"IF(F95=G95+J95+K95+L95+M95+N95+O95+P95+Q95+R95+S95+T95+U95+V95+W95+X95+Y95+Z95+AA95+AB95+AC95+AD95+AE95,\"проверка пройдена\",\"ВНИМАНИЕ! Сумма по строке не сходится с общей численностью выпускников! Исправьте ошибку в расчетах, пока это сообщение не исчезнет!\")","v":"проверка пройдена"}]
["ГАПОУ \"Казанский колледж строительства,архитектуры и городского хозяйства\"","43.02.08",{"$f":"VLOOKUP(B96,'[1]Коды программ'!$A$2:$B$578,2,FALSE)","v":"Сервис домашнего и коммунального хозяйства"},"13","           с инвалидностью вследствие\n           других причин",0,0,0,0,0,0,0,0,0,0,0,0,0,0,0,0,0,0,0,0,0,0,0,0,0,null,null,"проверка пройдена"]
["ГАПОУ \"Казанский колледж строительства,архитектуры и городского хозяйства\"","43.02.08",{"$f":"VLOOKUP(B97,'[1]Коды программ'!$A$2:$B$578,2,FALSE)","v":"Сервис домашнего и коммунального хозяйства"},"14","из общей численности выпускников из числа лиц с ОВЗ, инвалидов и детей-инвалидов (из строки 06): имеют договор о целевом обучении",0,0,0,0,0,0,0,0,0,0,0,0,0,0,0,0,0,0,0,0,0,0,0,0,0,null,null,"проверка пройдена"]
["ГАПОУ \"Казанский колледж строительства,архитектуры и городского хозяйства\"","43.02.08",{"$f":"VLOOKUP(B98,'[1]Коды программ'!$A$2:$B$578,2,FALSE)","v":"Сервис домашнего и коммунального хозяйства"},"15","из общей численности выпускников из числа лиц с ОВЗ, инвалидов и детей-инвалидов (из строки 06): принимали участие в чемпионате «Абилимпикс»",0,0,0,0,0,0,0,0,0,0,0,0,0,0,0,0,0,0,0,0,0,0,0,0,0,null,null,"проверка пройдена"]
["ГАПОУ \"Казанский колледж строительства,архитектуры и городского хозяйства\"","43.02.08",{"$f":"VLOOKUP(B99,'Коды программ'!$A$2:$B$578,2,FALSE)","v":"Сервис домашнего и коммунального хозяйства"},"01","Всего (общая численность выпускников)",0,0,0,0,0,0,0,0,0,0,0,0,0,0,0,0,0,0,0,0,0,0,0,0,0,null,null,{"$f":"IF(F99=G99+J99+K99+L99+M99+N99+O99+P99+Q99+R99+S99+T99+U99+V99+W99+X99+Y99+Z99+AA99+AB99+AC99+AD99+AE99,\"проверка пройдена\",\"ВНИМАНИЕ! Сумма по строке не сходится с общей численностью выпускников! Исправьте ошибку в расчетах, пока это сообщение не исчезнет!\")","v":"проверка пройдена"}]
["ГАПОУ \"Казанский колледж строительства,архитектуры и городского хозяйства\"","43.02.08",{"$f":"VLOOKUP(B100,'Коды программ'!$A$2:$B$578,2,FALSE)","v":"Сервис домашнего и коммунального хозяйства"},"02","из общей численности выпускников (из строки 01): лица с ОВЗ",0,0,0,0,0,0,0,0,0,0,0,0,0,0,0,0,0,0,0,0,0,0,0,0,0,null,null,{"$f":"IF(F100=G100+J100+K100+L100+M100+N100+O100+P100+Q100+R100+S100+T100+U100+V100+W100+X100+Y100+Z100+AA100+AB100+AC100+AD100+AE100,\"проверка пройдена\",\"ВНИМАНИЕ! Сумма по строке не сходится с общей численностью выпускников! Исправьте ошибку в расчетах, пока это сообщение не исчезнет!\")","v":"проверка пройдена"}]
["ГАПОУ \"Казанский колледж строительства,архитектуры и городского хозяйства\"","43.02.08",{"$f":"VLOOKUP(B101,'Коды программ'!$A$2:$B$578,2,FALSE)","v":"Сервис домашнего и коммунального хозяйства"},"03","из числа лиц с ОВЗ (из строки 02): инвалиды и дети-инвалиды",0,0,0,0,0,0,0,0,0,0,0,0,0,0,0,0,0,0,0,0,0,0,0,0,0,null,null,"проверка пройдена"]
["ГАПОУ \"Казанский колледж строительства,архитектуры и городского хозяйства\"","43.02.08",{"$f":"VLOOKUP(B102,'Коды программ'!$A$2:$B$578,2,FALSE)","v":"Сервис домашнего и коммунального хозяйства"},"04","Инвалиды и дети-инвалиды (кроме учтенных в строке 03)",0,0,0,0,0,0,0,0,0,0,0,0,0,0,0,0,0,0,0,0,0,0,0,0,0,null,null,"проверка пройдена"]
["ГАПОУ \"Казанский колледж строительства,архитектуры и городского хозяйства\"","43.02.08",{"$f":"VLOOKUP(B103,'Коды программ'!$A$2:$B$578,2,FALSE)","v":"Сервис домашнего и коммунального хозяйства"},"05","Имеют договор о целевом обучении",0,0,0,0,0,0,0,0,0,0,0,0,0,0,0,0,0,0,0,0,0,0,0,0,0,null,null,"проверка пройдена"]
["ГАПОУ \"Казанский колледж строительства,архитектуры и городского хозяйства\"","43.02.08",{"$f":"VLOOKUP(B104,'[1]Коды программ'!$A$2:$B$578,2,FALSE)","v":"Сервис домашнего и коммунального хозяйства"},"06","Автосумма строк 02 и 04 - Всего (общая численность выпускников из числа лиц с ОВЗ, инвалидов и детей-инвалидов) ",0,0,0,0,0,0,0,0,0,0,0,0,0,0,0,0,0,0,0,0,0,0,0,0,{"$f":"AD100+AD102","v":0},0,0,{"$f":"IF(F104=G104+J104+K104+L104+M104+N104+O104+P104+Q104+R104+S104+T104+U104+V104+W104+X104+Y104+Z104+AA104+AB104+AC104+AD104+AE104,\"проверка пройдена\",\"ВНИМАНИЕ! Сумма по строке не сходится с общей численностью выпускников! Исправьте ошибку в расчетах, пока это сообщение не исчезнет!\")","v":"проверка пройдена"}]
["ГАПОУ \"Казанский колледж строительства,архитектуры и городского хозяйства\"","43.02.08",{"$f":"VLOOKUP(B105,'[1]Коды программ'!$A$2:$B$578,2,FALSE)","v":"Сервис домашнего и коммунального хозяйства"},"07","из общей численности выпускников из числа лиц с ОВЗ, инвалидов и детей-инвалидов (из строки 06): с нарушениями:\n           зрения",0,0,0,0,0,0,0,0,0,0,0,0,0,0,0,0,0,0,0,0,0,0,0,0,0,0,null,{"$f":"IF(F105=G105+J105+K105+L105+M105+N105+O105+P105+Q105+R105+S105+T105+U105+V105+W105+X105+Y105+Z105+AA105+AB105+AC105+AD105+AE105,\"проверка пройдена\",\"ВНИМАНИЕ! Сумма по строке не сходится с общей численностью выпускников! Исправьте ошибку в расчетах, пока это сообщение не исчезнет!\")","v":"проверка пройдена"}]
["ГАПОУ \"Казанский колледж строительства,архитектуры и городского хозяйства\"","43.02.08",{"$f":"VLOOKUP(B106,'[1]Коды программ'!$A$2:$B$578,2,FALSE)","v":"Сервис домашнего и коммунального хозяйства"},"08","           слуха",0,0,0,0,0,0,0,0,0,0,0,0,0,0,0,0,0,0,0,0,0,0,0,0,0,0,null,{"$f":"IF(F106=G106+J106+K106+L106+M106+N106+O106+P106+Q106+R106+S106+T106+U106+V106+W106+X106+Y106+Z106+AA106+AB106+AC106+AD106+AE106,\"проверка пройдена\",\"ВНИМАНИЕ! Сумма по строке не сходится с общей численностью выпускников! Исправьте ошибку в расчетах, пока это сообщение не исчезнет!\")","v":"проверка пройдена"}]
["ГАПОУ \"Казанский колледж строительства,архитектуры и городского хозяйства\"","43.02.08",{"$f":"VLOOKUP(B107,'[1]Коды программ'!$A$2:$B$578,2,FALSE)","v":"Сервис домашнего и коммунального хозяйства"},"09","           опорно-двигательного аппарата",0,0,0,0,0,0,0,0,0,0,0,0,0,0,0,0,0,0,0,0,0,0,0,0,0,0,null,"проверка пройдена"]
["ГАПОУ \"Казанский колледж строительства,архитектуры и городского хозяйства\"","43.02.08",{"$f":"VLOOKUP(B108,'[1]Коды программ'!$A$2:$B$578,2,FALSE)","v":"Сервис домашнего и коммунального хозяйства"},"10","           тяжелыми нарушениями речи",0,0,0,0,0,0,0,0,0,0,0,0,0,0,0,0,0,0,0,0,0,0,0,0,0,0,null,"проверка пройдена"]
["ГАПОУ \"Казанский колледж строительства,архитектуры и городского хозяйства\"","43.02.08",{"$f":"VLOOKUP(B109,'[1]Коды программ'!$A$2:$B$578,2,FALSE)","v":"Сервис домашнего и коммунального хозяйства"},"11","           задержкой психического развития",0,0,0,0,0,0,0,0,0,0,0,0,0,0,0,0,0,0,0,0,0,0,0,0,0,0,null,{"$f":"IF(F109=G109+J109+K109+L109+M109+N109+O109+P109+Q109+R109+S109+T109+U109+V109+W109+X109+Y109+Z109+AA109+AB109+AC109+AD109+AE109,\"проверка пройдена\",\"ВНИМАНИЕ! Сумма по строке не сходится с общей численностью выпускников! Исправьте ошибку в расчетах, пока это сообщение не исчезнет!\")","v":"проверка пройдена"}]
["ГАПОУ \"Казанский колледж строительства,архитектуры и городского хозяйства\"","43.02.08",{"$f":"VLOOKUP(B110,'[1]Коды программ'!$A$2:$B$578,2,FALSE)","v":"Сервис домашнего и коммунального хозяйства"},"12","           расстройствами аутистического\n           спектра",0,0,0,0,0,0,0,0,0,0,0,0,0,0,0,0,0,0,0,0,0,0,0,0,0,0,null,{"$f":"IF(F110=G110+J110+K110+L110+M110+N110+O110+P110+Q110+R110+S110+T110+U110+V110+W110+X110+Y110+Z110+AA110+AB110+AC110+AD110+AE110,\"проверка пройдена\",\"ВНИМАНИЕ! Сумма по строке не сходится с общей численностью выпускников! Исправьте ошибку в расчетах, пока это сообщение не исчезнет!\")","v":"проверка пройдена"}]
["ГАПОУ \"Казанский колледж строительства,архитектуры и городского хозяйства\"","43.02.08",{"$f":"VLOOKUP(B111,'[1]Коды программ'!$A$2:$B$578,2,FALSE)","v":"Сервис домашнего и коммунального хозяйства"},"13","           с инвалидностью вследствие\n           других причин",0,0,0,0,0,0,0,0,0,0,0,0,0,0,0,0,0,0,0,0,0,0,0,0,0,0,null,"проверка пройдена"]
["ГАПОУ \"Казанский колледж строительства,архитектуры и городского хозяйства\"","43.02.08",{"$f":"VLOOKUP(B112,'[1]Коды программ'!$A$2:$B$578,2,FALSE)","v":"Сервис домашнего и коммунального хозяйства"},"14","из общей численности выпускников из числа лиц с ОВЗ, инвалидов и детей-инвалидов (из строки 06): имеют договор о целевом обучении",0,0,0,0,0,0,0,0,0,0,0,0,0,0,0,0,0,0,0,0,0,0,0,0,0,0,null,"проверка пройдена"]
["ГАПОУ \"Казанский колледж строительства,архитектуры и городского хозяйства\"","43.02.08",{"$f":"VLOOKUP(B113,'[1]Коды программ'!$A$2:$B$578,2,FALSE)","v":"Сервис домашнего и коммунального хозяйства"},"15","из общей численности выпускников из числа лиц с ОВЗ, инвалидов и детей-инвалидов (из строки 06): принимали участие в чемпионате «Абилимпикс»",0,0,0,0,0,0,0,0,0,0,0,0,0,0,0,0,0,0,0,0,0,0,0,0,0,0,null,"проверка пройдена"]

{"sheet":"Коды программ","index":1,"n_rows":578,"n_cols":11,"rows_kept":578}
["Коды и наименования образовательных программ",null,"Ведомственная принадлежность",null,"Тип",null,"Регионы",{"$nulls":3},"ФО"]
["05.01.01","Гидрометнаблюдатель","федеральная",null,"ПОО",null,"Алтайский край",{"$nulls":3},"ДФО"]
["05.02.01","Картография","региональная",null,"ОО ВО",null,"Амурская \n область",{"$nulls":3},"ПФО"]
["05.02.02","Гидрология","муниципальная",{"$nulls":3},"Архангельская область",{"$nulls":3},"СЗФО"]
["05.02.03","Метеорология","частная",{"$nulls":3},"Астраханская область",{"$nulls":3},"СКФО"]
["07.02.01","Архитектура",{"$nulls":4},"Белгородская область",{"$nulls":3},"СФО"]
["08.01.01","Изготовитель арматурных сеток и каркасов",{"$nulls":4},"Брянская область",{"$nulls":3},"УФО"]
["08.01.02","Монтажник трубопроводов",{"$nulls":4},"Владимирская область",{"$nulls":3},"ЦФО"]
["08.01.03","Трубоклад",{"$nulls":4},"Волгоградская область",{"$nulls":3},"ЮФО"]
["08.01.04","Кровельщик",{"$nulls":4},"Вологодская область"]
["08.01.05","Мастер столярно-плотничных и паркетных работ",{"$nulls":4},"Воронежская область"]
["08.01.06","Мастер сухого строительства",{"$nulls":4},"город Москва"]
["08.01.07","Мастер общестроительных работ",{"$nulls":4},"город Санкт-Петербург"]
["08.01.08","Мастер отделочных строительных работ",{"$nulls":4},"город Севастополь"]
["08.01.09","Слесарь по строительно-монтажным работам",{"$nulls":4},"Еврейская автономная область"]
["08.01.10","Мастер жилищно-коммунального хозяйства",{"$nulls":4},"Забайкальский край"]
["08.01.11","Машинист машин и оборудования в производстве цемента",{"$nulls":4},"Ивановская область"]
["08.01.12","Оператор технологического оборудования в производстве стеновых и вяжущих материалов",{"$nulls":4},"Иркутская область"]
["08.01.13","Изготовитель железобетонных изделий",{"$nulls":4},"Кабардино-Балкарская республика"]
["08.01.14","Монтажник санитарно-технических, вентиляционных систем и оборудования",{"$nulls":4},"Калининградская область"]
["08.01.15","Слесарь по изготовлению деталей и узлов технических систем в строительстве",{"$nulls":4},"Калужская область"]
["08.01.16","Электромонтажник по сигнализации, централизации и блокировке",{"$nulls":4},"Камчатский край"]
["08.01.17","Электромонтажник-наладчик",{"$nulls":4},"Карачаево-Черкесская Республика"]
["08.01.18","Электромонтажник электрических сетей и электрооборудования",{"$nulls":4},"Кемеровская область - Кузбасс"]
["08.01.19","Электромонтажник по силовым сетям и электрооборудованию",{"$nulls":4},"Кировская область"]
["08.01.20","Электромонтажник по электрическим машинам",{"$nulls":4},"Костромская область"]
["08.01.21","Монтажник электрических подъемников (лифтов)",{"$nulls":4},"Краснодарский край"]
["08.01.22","Мастер путевых машин",{"$nulls":4},"Красноярский край"]
["08.01.23","Бригадир-путеец",{"$nulls":4},"Курганская область"]
["08.01.24","Мастер столярно-плотничных, паркетных и стекольных работ",{"$nulls":4},"Курская область"]
["08.01.25","Мастер отделочных строительных и декоративных работ",{"$nulls":4},"Ленинградская область"]
["08.01.26","Мастер по ремонту и обслуживанию инженерных систем жилищно-коммунального хозяйства",{"$nulls":4},"Липецкая область"]
["08.02.01","Строительство и эксплуатация зданий и сооружений",{"$nulls":4},"Магаданская область"]
["08.02.02","Строительство и эксплуатация инженерных сооружений",{"$nulls":4},"Московская область"]
["08.02.03","Производство неметаллических строительных изделий и конструкций",{"$nulls":4},"Мурманская область"]
["08.02.04","Водоснабжение и водоотведение",{"$nulls":4},"Ненецкий автономный округ"]
["08.02.05","Строительство и эксплуатация автомобильных дорог и аэродромов",{"$nulls":4},"Нижегородская область"]
["08.02.06","Строительство и эксплуатация городских путей сообщения",{"$nulls":4},"Новгородская область"]
["08.02.07","Монтаж и эксплуатация внутренних сантехнических устройств, кондиционирования воздуха и вентиляции",{"$nulls":4},"Новосибирская область"]
["08.02.08","Монтаж и эксплуатация оборудования и систем газоснабжения",{"$nulls":4},"Омская область"]
["08.02.09","Монтаж, наладка и эксплуатация электрооборудования промышленных и гражданских зданий",{"$nulls":4},"Оренбургская область"]
["08.02.10","Строительство железных дорог, путь и путевое хозяйство",{"$nulls":4},"Орловская область"]
["08.02.11","Управление, эксплуатация и обслуживание многоквартирного дома",{"$nulls":4},"Пензенская область"]
["09.01.01","Наладчик аппаратного и программного обеспечения",{"$nulls":4},"Пермский край"]
["09.01.02","Наладчик компьютерных сетей",{"$nulls":4},"Приморский Край"]
["09.01.03","Мастер по обработке цифровой информации",{"$nulls":4},"Псковская область"]
["09.02.01","Компьютерные системы и комплексы",{"$nulls":4},"Республика Адыгея"]
["09.02.02","Компьютерные сети",{"$nulls":4},"Республика Алтай"]
["09.02.03","Программирование в компьютерных системах",{"$nulls":4},"Республика Башкортостан"]
["09.02.04","Информационные системы (по отраслям)",{"$nulls":4},"Республика Бурятия"]
["09.02.05","Прикладная информатика (по отраслям)",{"$nulls":4},"Республика Дагестан"]
["09.02.06","Сетевое и системное администрирование",{"$nulls":4},"Республика Ингушетия"]
["09.02.07","Информационные системы и программирование",{"$nulls":4},"Республика Калмыкия"]
["10.02.01","Организация и технология защиты информации",{"$nulls":4},"Республика Карелия"]
["10.02.02","Информационная безопасность телекоммуникационных систем",{"$nulls":4},"Республика Коми"]
["10.02.03","Информационная безопасность автоматизированных систем",{"$nulls":4},"Республика Крым"]
["10.02.04","Обеспечение информационной безопасности телекоммуникационных систем",{"$nulls":4},"Республика Марий Эл"]
["10.02.05","Обеспечение информационной безопасности автоматизированных систем",{"$nulls":4},"Республика Мордовия"]
["11.01.01","Монтажник радиоэлектронной аппаратуры и приборов",{"$nulls":4},"Республика Саха (Якутия)"]
["11.01.02","Радиомеханик",{"$nulls":4},"Республика Северная Осетия - Алания"]
["11.01.03","Радиооператор",{"$nulls":4},"Республика Татарстан"]
["11.01.04","Монтажник оборудования радио- и телефонной связи",{"$nulls":4},"Республика Тыва"]
["11.01.05","Монтажник связи",{"$nulls":4},"Республика Хакасия"]
["11.01.06","Электромонтер оборудования электросвязи и проводного вещания",{"$nulls":4},"Ростовская область"]
["11.01.07","Электромонтер по ремонту линейно-кабельных сооружений телефонной связи и проводного вещания",{"$nulls":4},"Рязанская область"]
["11.01.08","Оператор связи",{"$nulls":4},"Самарская область"]
["11.01.09","Оператор микроэлектронного производства",{"$nulls":4},"Саратовская область"]
["11.01.10","Оператор оборудования элионных процессов",{"$nulls":4},"Сахалинская область"]
["11.01.11","Наладчик технологического оборудования (электронная техника)",{"$nulls":4},"Свердловская область"]
["11.01.12","Сборщик изделий электронной техники",{"$nulls":4},"Смоленская область"]
["11.01.13","Сборщик приборов вакуумной электроники",{"$nulls":4},"Ставропольский край"]
["11.02.01","Радиоаппаратостроение",{"$nulls":4},"Тамбовская область"]
["11.02.02","Техническое обслуживание и ремонт радиоэлектронной техники (по отраслям)",{"$nulls":4},"Тверская область"]
["11.02.03","Эксплуатация оборудования радиосвязи и электрорадионавигации судов",{"$nulls":4},"Томская область"]
["11.02.04","Радиотехнические комплексы и системы управления космических летательных аппаратов",{"$nulls":4},"Тульская область"]
["11.02.05","Аудиовизуальная техника",{"$nulls":4},"Тюменская область"]
["11.02.06","Техническая эксплуатация транспортного радиоэлектронного оборудования (по видам транспорта)",{"$nulls":4},"Удмуртская республика"]
["11.02.07","Радиотехнические информационные системы",{"$nulls":4},"Ульяновская область"]
["11.02.08","Средства связи с подвижными объектами",{"$nulls":4},"Хабаровский край"]
["11.02.09","Многоканальные телекоммуникационные системы",{"$nulls":4},"Ханты-Мансийский автономный округ - Югра"]
["11.02.10","Радиосвязь, радиовещание и телевидение",{"$nulls":4},"Челябинская область"]
["11.02.11","Сети связи и системы коммутации",{"$nulls":4},"Чеченская Республика"]
["11.02.12","Почтовая связь",{"$nulls":4},"Чувашская Республика"]
["11.02.13","Твердотельная электроника",{"$nulls":4},"Чукотский автономный округ"]
["11.02.14","Электронные приборы и устройства",{"$nulls":4},"Ямало-Ненецкий автономный округ"]
["11.02.15","Инфокоммуникационные сети и системы связи",{"$nulls":4},"Ярославская область"]
["11.02.16","Монтаж, техническое обслуживание и ремонт электронных приборов и устройств"]
["12.01.01","Наладчик оборудования оптического производства"]
["12.01.02","Оптик-механик"]
["12.01.03","Сборщик очков"]
["12.01.04","Электромеханик по ремонту и обслуживанию наркознодыхательной аппаратуры"]
["12.01.05","Электромеханик по ремонту и обслуживанию медицинского оборудования"]
["12.01.06","Электромеханик по ремонту и обслуживанию медицинских оптических приборов"]
["12.01.07","Электромеханик по ремонту и обслуживанию электронной медицинской аппаратуры"]
["12.01.08","Механик протезно-ортопедических изделий"]
["12.01.09","Мастер по изготовлению и сборке деталей и узлов оптических и оптико-электронных приборов и систем"]
["12.02.01","Авиационные приборы и комплексы"]
["12.02.02","Акустические приборы и системы"]
["12.02.03","Радиоэлектронные приборные устройства"]
["12.02.04","Электромеханические приборные устройства"]
["12.02.05","Оптические и оптико-электронные приборы и системы"]
["12.02.06","Биотехнические и медицинские аппараты и системы"]
["12.02.07","Монтаж, техническое обслуживание и ремонт медицинской техники"]
["12.02.08","Протезно-ортопедическая и реабилитационная техника"]
["12.02.09","Производство и эксплуатация оптических и оптико-электронных приборов и систем"]
["12.02.10","Монтаж, техническое обслуживание и ремонт биотехнических и медицинских аппаратов и систем"]
["13.01.01","Машинист котлов"]
["13.01.02","Машинист паровых турбин"]
["13.01.03","Электрослесарь по ремонту оборудования электростанций"]
["13.01.04","Слесарь по ремонту оборудования электростанций"]
["13.01.05","Электромонтер по техническому обслуживанию электростанций и сетей"]
["13.01.06","Электромонтер-литейщик по монтажу воздушных линий высокого напряжения и контактной сети"]
["13.01.07","Электромонтер по ремонту электросетей"]
["13.01.08","Сборщик трансформаторов"]
["13.01.09","Сборщик электрических машин и аппаратов"]
["13.01.10","Электромонтер по ремонту и обслуживанию электрооборудования (по отраслям)"]
["13.01.11","Электромеханик по испытанию и ремонту электрооборудования летательных аппаратов"]
["13.01.12","Сборщик электроизмерительных приборов"]
["13.01.13","Электромонтажник-схемщик"]
["13.01.14","Электромеханик по лифтам"]
["13.02.01","Тепловые электрические станции"]
["13.02.02","Теплоснабжение и теплотехническое оборудование"]
["13.02.03","Электрические станции, сети и системы"]
["13.02.04","Гидроэлектроэнергетические установки"]
["13.02.05","Технология воды, топлива и смазочных материалов на электрических станциях"]
["13.02.06","Релейная защита и автоматизация электроэнергетических систем"]
["13.02.07","Электроснабжение (по отраслям)"]
["13.02.08","Электроизоляционная, кабельная и конденсаторная техника"]
["13.02.09","Монтаж и эксплуатация линий электропередачи"]
["13.02.10","Электрические машины и аппараты"]
["13.02.11","Техническая эксплуатация и обслуживание электрического и электромеханического оборудования (по отраслям)"]
["14.02.01","Атомные электрические станции и установки"]
["14.02.02","Радиационная безопасность"]
["14.02.03","Технология разделения изотопов"]
["15.01.01","Оператор в производстве металлических изделий"]
["15.01.02","Наладчик холодноштамповочного оборудования"]
["15.01.03","Наладчик кузнечно-прессового оборудования"]
["15.01.04","Наладчик сварочного и газоплазморезательного оборудования"]
["15.01.05","Сварщик (ручной и частично механизированной сварки (наплавки)"]
["15.01.06","Сварщик на лазерных установках"]
["15.01.07","Сварщик на электронно-лучевых сварочных установках"]
["15.01.08","Наладчик литейного оборудования"]
["15.01.09","Машинист лесозаготовительных и трелевочных машин"]
["15.01.10","Слесарь по ремонту лесозаготовительного оборудования"]
["15.01.11","Электромонтажник блоков электронно-механических часов"]
["15.01.12","Часовщик-ремонтник"]
["15.01.13","Монтажник технологического оборудования (по видам оборудования)"]
["15.01.14","Наладчик оборудования в бумажном производстве"]
["15.01.15","Наладчик деревообрабатывающего оборудования"]
["15.01.16","Наладчик технологического оборудования в производстве строительных материалов"]
["15.01.17","Электромеханик по торговому и холодильному оборудованию"]
["15.01.18","Машинист холодильных установок"]
["15.01.19","Наладчик контрольно-измерительных приборов и автоматики"]
["15.01.20","Слесарь по контрольно-измерительным приборам и автоматике"]
["15.01.21","Электромонтер охранно-пожарной сигнализации"]
["15.01.22","Чертежник-конструктор"]
["15.01.23","Наладчик станков и оборудования в механообработке"]
["15.01.24","Наладчик шлифовальных станков"]
["15.01.25","Станочник (металлообработка)"]
["15.01.26","Токарь-универсал"]
["15.01.27","Фрезеровщик-универсал"]
["15.01.28","Шлифовщик-универсал"]
["15.01.29","Контролер станочных и слесарных работ"]
["15.01.30","Слесарь"]
["15.01.31","Мастер контрольно-измерительных приборов и автоматики"]
["15.01.32","Оператор станков с программным управлением"]
["15.01.33","Токарь на станках с числовым программным управлением"]
["15.01.34","Фрезеровщик на станках с числовым программным управлением"]
["15.01.35","Мастер слесарных работ"]
["15.01.36","Дефектоскопист"]
["15.02.01","Монтаж и техническая эксплуатация промышленного оборудования (по отраслям)"]
["15.02.02","Техническая эксплуатация оборудования для производства электронной техники"]
["15.02.03","Техническая эксплуатация гидравлических машин, гидроприводов и гидропневмоавтоматики"]
["15.02.04","Специальные машины и устройства"]
["15.02.05","Техническая эксплуатация оборудования в торговле и общественном питании"]
["15.02.06","Монтаж и техническая эксплуатация холодильно-компрессорных машин и установок (по отраслям)"]
["15.02.07","Автоматизация технологических процессов и производств (по отраслям)"]
["15.02.08","Технология машиностроения"]
["15.02.09","Аддитивные технологии"]
["15.02.10","Мехатроника и мобильная робототехника (по отраслям)"]
["15.02.11","Техническая эксплуатация и обслуживание роботизированного производства"]
["15.02.12","Монтаж, техническое обслуживание и ремонт промышленного оборудования (по отраслям)"]
["15.02.13","Техническое обслуживание и ремонт систем вентиляции и кондиционирования"]
["15.02.14","Оснащение средствами автоматизации технологических процессов и производств (по отраслям)"]
["15.02.15","Технология металлообрабатывающего производства"]
["18.01.01","Лаборант по физико-механическим испытаниям"]
["18.01.02","Лаборант-эколог"]
["18.01.03","Аппаратчик-оператор экологических установок"]
["18.01.04","Изготовитель изделий строительной керамики"]
["18.01.05","Аппаратчик-оператор производства неорганических веществ"]
["18.01.06","Оператор производства стекловолокна, стекловолокнистых материалов и изделий стеклопластиков"]
["18.01.07","Аппаратчик производства стекловолокнистых материалов и стеклопластиков"]
["18.01.08","Мастер-изготовитель деталей и изделий из стекла"]
["18.01.09","Мастер-обработчик стекла и стеклоизделий"]
["18.01.10","Отдельщик и резчик стекла"]
["18.01.11","Контролер стекольного производства"]
["18.01.12","Изготовитель фарфоровых и фаянсовых изделий"]
["18.01.13","Отделочник и комплектовщик фарфоровых и фаянсовых изделий"]
["18.01.14","Контролер-приемщик фарфоровых, фаянсовых и керамических изделий"]
["18.01.15","Изготовитель эмалированной посуды"]
["18.01.16","Аппаратчик в производстве химических волокон"]
["18.01.17","Оператор в производстве химических волокон"]
["18.01.18","Аппаратчик производства синтетических смол и пластических масс"]
["18.01.19","Машинист-оператор в производстве изделий из пластмасс"]
["18.01.20","Прессовщик изделий из пластмасс"]
["18.01.21","Машинист-аппаратчик подготовительных процессов в производстве резиновых смесей, резиновых технических изделий и шин"]
["18.01.22","Оператор в производстве шин"]
["18.01.23","Оператор процессов вулканизации"]
["18.01.24","Мастер шиномонтажной мастерской"]
["18.01.25","Оператор в производстве резиновых технических изделий и обуви"]
["18.01.26","Аппаратчик-оператор нефтехимического производства"]
["18.01.27","Машинист технологических насосов и компрессоров"]
["18.01.28","Оператор нефтепереработки"]
["18.01.29","Мастер по обслуживанию магистральных трубопроводов"]
["18.01.30","Аппаратчик-оператор коксохимического производства"]
["18.01.31","Машинист машин коксохимического производства"]
["18.01.32","Аппаратчик-оператор азотных производств и продуктов органического синтеза"]
["18.01.33","Лаборант по контролю качества сырья, реактивов, промежуточных продуктов, готовой продукции, отходов производства (по отраслям)"]
["18.02.01","Аналитический контроль качества химических соединений"]
["18.02.02","Химическая технология отделочного производства и обработки изделий"]
["18.02.03","Химическая технология неорганических веществ"]
["18.02.04","Электрохимическое производство"]
["18.02.05","Производство тугоплавких неметаллических и силикатных материалов и изделий"]
["18.02.06","Химическая технология органических веществ"]
["18.02.07","Технология производства и переработки пластических масс и эластомеров"]
["18.02.08","Технология кинофотоматериалов и магнитных носителей"]
["18.02.09","Переработка нефти и газа"]
["18.02.10","Коксохимическое производство"]
["18.02.11","Технология пиротехнических составов и изделий"]
["18.02.12","Технология аналитического контроля комических соединений"]
["18.02.13","Технология производства изделий из полимерных композитов"]
["19.01.01","Аппаратчик-оператор в биотехнологии"]
["19.01.02","Лаборант-аналитик"]
["19.01.03","Аппаратчик элеваторного, мукомольного, крупяного и комбикормового производства"]
["19.01.04","Пекарь"]
["19.01.05","Оператор поточно-автоматической линии (макаронное производство)"]
["19.01.06","Аппаратчик производства сахара"]
["19.01.07","Кондитер сахаристых изделий"]
["19.01.08","Пивовар"]
["19.01.09","Наладчик оборудования в производстве пищевой продукции (по отраслям производства)"]
["19.01.10","Мастер производства молочной продукции"]
["19.01.11","Изготовитель мороженого"]
["19.01.12","Переработчик скота и мяса"]
["19.01.13","Обработчик птицы и кроликов"]
["19.01.14","Оператор процессов колбасного производства"]
["19.01.15","Аппаратчик получения растительного масла"]
["19.01.16","Оператор линии производства маргарина"]
["19.01.17","Повар, кондитер"]
["19.02.01","Биохимическое производство"]
["19.02.02","Технология хранения и переработки зерна"]
["19.02.03","Технология хлеба, кондитерских и макаронных изделий"]
["19.02.04","Технология сахаристых продуктов"]
["19.02.05","Технология бродильных производств и виноделие"]
["19.02.06","Технология консервов и пищеконцентратов"]
["19.02.07","Технология молока и молочных продуктов"]
["19.02.08","Технология мяса и мясных продуктов"]
["19.02.09","Технология жиров и жирозаменителей"]
["19.02.10","Технология продукции общественного питания"]
["20.01.01","Пожарный"]
["20.02.01","Рациональное использование природохозяйственных комплексов"]
["20.02.02","Защита в чрезвычайных ситуациях"]
["20.02.03","Природоохранное обустройство территорий"]
["20.02.04","Пожарная безопасность"]
["21.01.01","Оператор нефтяных и газовых скважин"]
["21.01.02","Оператор по ремонту скважин"]
["21.01.03","Бурильщик эксплуатационных и разведочных скважин"]
["21.01.04","Машинист на буровых установках"]
["21.01.05","Оператор (моторист) по цементажу скважин"]
["21.01.06","Вышкомонтажник (широкого профиля)"]
["21.01.07","Бурильщик морского бурения скважин"]
["21.01.08","Машинист на открытых горных работах"]
["21.01.09","Машинист машин по добыче и переработке торфа"]
["21.01.10","Ремонтник горного оборудования"]
["21.01.11","Горнорабочий на подземных работах"]
["21.01.12","Машинист электровоза (на горных выработках)"]
["21.01.13","Проходчик"]
["21.01.14","Горномонтажник подземный"]
["21.01.15","Электрослесарь подземный"]
["21.01.16","Обогатитель полезных ископаемых"]
["21.02.01","Разработка и эксплуатация нефтяных и газовых месторождений"]
["21.02.02","Бурение нефтяных и газовых скважин"]
["21.02.03","Сооружение и эксплуатация газонефтепроводов и газонефтехранилиш"]
["21.02.04","Землеустройство"]
["21.02.05","Земельно-имущественные отношения"]
["21.02.06","Информационные системы обеспечения градостроительной деятельности"]
["21.02.07","Аэрофотогеодезия"]
["21.02.08","Прикладная геодезия"]
["21.02.09","Гидрогеология и инженерная геология"]
["21.02.10","Геология и разведка нефтяных и газовых месторождений"]
["21.02.11","Геофизические методы поисков и разведки месторождений полезных ископаемых"]
["21.02.12","Технология и техника разведки месторождений полезных ископаемых"]
["21.02.13","Геологическая съемка, поиски и разведка месторождений полезных ископаемых"]
["21.02.14","Маркшейдерское дело"]
["21.02.15","Открытые горные работы"]
["21.02.16","Шахтное строительство"]
["21.02.17","Подземная разработка месторождений полезных ископаемых"]
["21.02.18","Обогащение полезных ископаемых"]
["22.01.01","Доменщик"]
["22.01.02","Сталеплавильщик (по типам производства)"]
["22.01.03","Машинист крана металлургического производства"]
["22.01.04","Контролер металлургического производства"]
["22.01.05","Аппаратчик-оператор в производстве цветных металлов"]
["22.01.06","Оператор-обработчик цветных металлов"]
["22.01.07","Модельщик"]
["22.01.08","Оператор прокатного производства"]
["22.01.09","Оператор трубного производства"]
["22.01.10","Оператор в производстве огнеупоров"]
["22.02.01","Металлургия черных металлов"]
["22.02.02","Металлургия цветных металлов"]
["22.02.03","Литейное производство черных и цветных металлов"]
["22.02.04","Металловедение и термическая обработка металлов"]
["22.02.05","Обработка металлов давлением"]
["22.02.06","Сварочное производство"]
["22.02.07","Порошковая металлургия, композиционные материалы, покрытия"]
["23.01.01","Оператор транспортного терминала"]
["23.01.02","Докер-механизатор"]
["23.01.03","Автомеханик"]
["23.01.04","Водитель городского электротранспорта"]
["23.01.05","Слесарь по ремонту городского электротранспорта"]
["23.01.06","Машинист дорожных и строительных машин"]
["23.01.07","Машинист крана (крановщик)"]
["23.01.08","Слесарь по ремонту строительных машин"]
["23.01.09","Машинист локомотива"]
["23.01.10","Слесарь по обслуживанию и ремонту подвижного состава"]
["23.01.11","Слесарь-электрик по ремонту электрооборудования подвижного состава (электровозов, электропоездов)"]
["23.01.12","Слесарь-электрик метрополитена"]
["23.01.13","Электромонтер тяговой подстанции"]
["23.01.14","Электромонтер устройств сигнализации, централизации, блокировки (СЦБ)"]
["23.01.15","Оператор поста централизации"]
["23.01.16","Составитель поездов"]
["23.01.17","Мастер по ремонту и обслуживанию автомобилей"]
["23.02.01","Организация перевозок и управление на транспорте (по видам)"]
["23.02.02","Автомобиле- и тракторостроение"]
["23.02.03","Техническое обслуживание и ремонт автомобильного транспорта"]
["23.02.04","Техническая эксплуатация подъемно-транспортных, строительных, дорожных машин и оборудования (по отраслям)"]
["23.02.05","Эксплуатация транспортного электрооборудования и автоматики (по видам транспорта, за исключением водного)"]
["23.02.06","Техническая эксплуатация подвижного состава железных дорог"]
["23.02.07","Техническое обслуживание и ремонт двигателей, систем и агрегатов автомобилей"]
["24.01.01","Слесарь-сборщик авиационной техники"]
["24.01.02","Электромонтажник авиационной техники"]
["24.01.03","Слесарь-механик авиационных приборов"]
["24.01.04","Слесарь по ремонту авиационной техники"]
["24.02.01","Производство летательных аппаратов"]
["24.02.02","Производство авиационных двигателей"]
["24.02.03","Испытание летательных аппаратов"]
["25.02.01","Техническая эксплуатация летательных аппаратов и двигателей"]
["25.02.02","Обслуживание летательных аппаратов горюче-смазочными материалами"]
["25.02.03","Техническая эксплуатация электрифицированных и пилотажно-навигационных комплексов"]
["25.02.04","Летная эксплуатация летательных аппаратов"]
["25.02.05","Управление движением воздушного транспорта"]
["25.02.06","Производство и обслуживание авиационной техники"]
["25.02.07","Техническое обслуживание авиационных двигателей"]
["25.02.08","Эксплуатация беспилотных авиационных систем"]
["26.01.01","Судостроитель-судоремонтник металлических судов"]
["26.01.02","Судостроитель-судоремонтник неметаллических судов"]
["26.01.03","Слесарь-монтажник судовой"]
["26.01.04","Слесарь-механик судовой"]
["26.01.05","Электрорадиомонтажник судовой"]
["26.01.06","Судоводитель-помощник механика маломерного судна"]
["26.01.07","Матрос"]
["26.01.08","Моторист (машинист)"]
["26.01.09","Моторист судовой"]
["26.01.10","Механик маломерного судна"]
["26.01.11","Машинист-котельный судовой"]
["26.01.12","Электрик судовой"]
["26.01.13","Водолаз"]
["26.02.01","Эксплуатация внутренних водных путей"]
["26.02.02","Судостроение"]
["26.02.03","Судовождение"]
["26.02.04","Монтаж и техническое обслуживание судовых машин и механизмов"]
["26.02.05","Эксплуатация судовых энергетических установок"]
["26.02.06","Эксплуатация судового электрооборудования и средств автоматики"]
["27.02.01","Метрология"]
["27.02.02","Техническое регулирование и управление качеством"]
["27.02.03","Автоматика и телемеханика на транспорте (железнодорожном транспорте)"]
["27.02.04","Автоматические системы управления"]
["27.02.05","Системы и средства диспетчерского управления"]
["27.02.06","Контроль работы измерительных приборов"]
["27.02.07","Управление качеством продукции, процессов и услуг (по отраслям)"]
["29.01.01","Скорняк"]
["29.01.02","Обувщик (широкого профиля)"]
["29.01.03","Сборщик обуви"]
["29.01.04","Художник по костюму"]
["29.01.05","Закройщик"]
["29.01.06","Раскройщик материалов"]
["29.01.07","Портной"]
["29.01.08","Оператор швейного оборудования"]
["29.01.09","Вышивальщица"]
["29.01.10","Модистка головных уборов"]
["29.01.11","Контролер качества текстильных изделий"]
["29.01.12","Оператор крутильного оборудования (для всех видов производств)"]
["29.01.13","Оператор оборудования чесального производства (для всех видов производств)"]
["29.01.14","Оператор прядильного производства"]
["29.01.15","Раклист"]
["29.01.16","Ткач"]
["29.01.17","Оператор вязально-швейного оборудования"]
["29.01.18","Вязальщица текстильно-галантерейных изделий"]
["29.01.19","Оператор производства нетканых материалов"]
["29.01.20","Красильщик (общие профессии производства текстиля)"]
["29.01.21","Оператор оборудования отделочного производства (общие профессии производства текстиля)"]
["29.01.22","Аппаратчик отделочного производства (общие профессии производства текстиля)"]
["29.01.23","Наладчик полиграфического оборудования"]
["29.01.24","Оператор электронного набора и верстки"]
["29.01.25","Переплетчик"]
["29.01.26","Печатник плоской печати"]
["29.01.27","Мастер печатного дела"]
["29.01.28","Огранщик алмазов в бриллианты"]
["29.01.29","Мастер столярного и мебельного производства"]
["29.01.30","Обойщик мебели"]
["29.02.01","Конструирование, моделирование и технология изделий из кожи"]
["29.02.02","Технология кожи и меха"]
["29.02.03","Конструирование, моделирование и технология изделий из меха"]
["29.02.04","Конструирование, моделирование и технология швейных изделии"]
["29.02.05","Технология текстильных изделий (по видам)"]
["29.02.06","Полиграфическое производство"]
["29.02.07","Производство изделий из бумаги и картона"]
["29.02.08","Технология обработки алмазов"]
["29.02.09","Печатное дело"]
["31.02.01","Лечебное дело"]
["31.02.02","Акушерское дело"]
["31.02.03","Лабораторная диагностика"]
["31.02.04","Медицинская оптика"]
["31.02.05","Стоматология ортопедическая"]
["31.02.06","Стоматология профилактическая"]
["32.02.01","Медико-профилактическое дело"]
["33.02.01","Фармация"]
["34.01.01","Младшая медицинская сестра по уходу за больными"]
["34.02.01","Сестринское дело"]
["34.02.02","Медицинский массаж (для обучения лиц с ограниченными возможностями здоровья по зрению)"]
["35.01.01","Мастер по лесному хозяйству"]
["35.01.02","Станочник деревообрабатывающих станков"]
["35.01.03","Станочник-обработчик"]
["35.01.04","Оператор линии и установок в деревообработке"]
["35.01.05","Контролер полуфабрикатов и изделий из древесины"]
["35.01.06","Машинист машин по производству бумаги и картона"]
["35.01.07","Сушильщик в бумажном производстве"]
["35.01.08","Контролер целлюлозно-бумажного производства"]
["35.01.09","Мастер растениеводства"]
["35.01.10","Овощевод защищенного грунта"]
["35.01.11","Мастер сельскохозяйственного производства"]
["35.01.12","Заготовитель продуктов и сырья"]
["35.01.13","Тракторист-машинист сельскохозяйственного производства"]
["35.01.14","Мастер по техническому обслуживанию и ремонту машинно-тракторного парка"]
["35.01.15","Электромонтер по ремонту и обслуживанию электрооборудования в сельскохозяйственном производстве"]
["35.01.16","Рыбовод"]
["35.01.17","Обработчик рыбы и морепродуктов"]
["35.01.18","Рыбак прибрежного лова"]
["35.01.19","Мастер садово-паркового и ландшафтного строительства"]
["35.01.20","Пчеловод"]
["35.01.21","Оленевод-механизатор"]
["35.01.22","Охотник промысловый"]
["35.01.23","Хозяйка(ин) усадьбы"]
["35.01.24","Управляющий сельской усадьбой"]
["35.02.01","Лесное и лесопарковое хозяйство"]
["35.02.02","Технология лесозаготовок"]
["35.02.03","Технология деревообработки"]
["35.02.04","Технология комплексной переработки древесины"]
["35.02.05","Агрономия"]
["35.02.06","Технология производства и переработки сельскохозяйственной продукции"]
["35.02.07","Механизация сельского хозяйства"]
["35.02.08","Электрификация и автоматизация сельского хозяйства"]
["35.02.09","Ихтиология и рыбоводство"]
["35.02.10","Обработка водных биоресурсов"]
["35.02.11","Промышленное рыболовство"]
["35.02.12","Садово-парковое и ландшафтное строительство"]
["35.02.13","Пчеловодство"]
["35.02.14","Охотоведение и звероводство"]
["35.02.15","Кинология"]
["35.02.16","Эксплуатация и ремонт сельскохозяйственной техники и оборудования"]
["36.01.01","Младший ветеринарный фельдшер"]
["36.01.02","Мастер животноводства"]
["36.01.03","Тренер-наездник лошадей"]
["36.02.01","Ветеринария"]
["36.02.02","Зоотехния"]
["38.01.01","Оператор диспетчерской (производственно-диспетчерской) службы"]
["38.01.02","Продавец, контролер-кассир"]
["38.01.03","Контролер банка"]
["38.02.01","Экономика и бухгалтерский учет (по отраслям)"]
["38.02.02","Страховое дело (по отраслям)"]
["38.02.03","Операционная деятельность в логистике"]
["38.02.04","Коммерция (по отраслям)"]
["38.02.05","Товароведение и экспертиза качества потребительских товаров"]
["38.02.06","Финансы"]
["38.02.07","Банковское дело"]
["39.01.01","Социальный работник"]
["39.02.01","Социальная работа"]
["39.02.02","Организация сурдокоммуникации"]
["40.02.01","Право и организация социального обеспечения"]
["40.02.02","Правоохранительная деятельность"]
["40.02.03","Право и судебное администрирование"]
["42.01.01","Агент рекламный"]
["42.02.01","Реклама"]
["42.02.02","Издательское дело"]
["43.01.01","Официант, бармен"]
["43.01.02","Парикмахер"]
["43.01.03","Бортпроводник судовой"]
["43.01.04","Повар судовой"]
["43.01.05","Оператор по обработке перевозочных документов на железнодорожном транспорте"]
["43.01.06","Проводник на железнодорожном транспорте"]
["43.01.07","Слесарь по эксплуатации и ремонту газового оборудования"]
["43.01.08","Аппаратчик химической чистки"]
["43.01.09","Повар, кондитер"]
["43.02.01","Организация обслуживания в общественном питании"]
["43.02.02","Парикмахерское искусство"]
["43.02.03","Стилистика и искусство визажа"]
["43.02.04","Прикладная эстетика"]
["43.02.05","Флористика"]
["43.02.06","Сервис на транспорте (по видам транспорта)"]
["43.02.07","Сервис по химической обработке изделии"]
["43.02.08","Сервис домашнего и коммунального хозяйства"]
["43.02.09","Ритуальный сервис"]
["43.02.10","Туризм"]
["43.02.11","Гостиничный сервис"]
["43.02.12","Технология эстетических услуг"]
["43.02.13","Технология парикмахерского искусства"]
["43.02.14","Гостиничное дело"]
["43.02.15","Поварское и кондитерское дело"]
["44.02.01","Дошкольное образование"]
["44.02.02","Преподавание в начальных классах"]
["44.02.03","Педагогика дополнительного образования"]
["44.02.04","Специальное дошкольное образование"]
["44.02.05","Коррекционная педагогика в начальном образовании"]
["44.02.06","Профессиональное обучение (по отраслям)"]
["46.01.01","Секретарь"]
["46.01.02","Архивариус"]
["46.01.03","Делопроизводитель"]
["46.02.01","Документационное обеспечение управления и архивоведение"]
["49.02.01","Физическая культура"]
["49.02.02","Адаптивная физическая культура"]
["50.02.01","Мировая художественная культура"]
["51.02.01","Народное художественное творчество (по видам)"]
["51.02.02","Социально-культурная деятельность (по видам)"]
["51.02.03","Библиотековедение"]
["52.02.01","Искусство балета"]
["52.02.02","Искусство танца (по видам)"]
["52.02.03","Цирковое искусство"]
["52.02.04","Актерское искусство"]
["52.02.05","Искусство эстрады"]
["53.02.01","Музыкальное образование"]
["53.02.02","Музыкальное искусство эстрады (по видам)"]
["53.02.03","Инструментальное исполнительство (по видам инструментов)"]
["53.02.04","Вокальное искусство"]
["53.02.05","Сольное и хоровое народное пение"]
["53.02.06","Хоровое дирижирование с присвоением квалификаций хормейстер, преподаватель"]
["53.02.07","Теория музыки"]
["53.02.08","Музыкальное звукооператорское мастерство"]
["53.02.09","Театрально-декорационное искусство (по видам)"]
["54.01.01","Исполнитель художественно-оформительских работ"]
["54.01.02","Ювелир"]
["54.01.03","Фотограф"]
["54.01.04","Мастер народных художественных промыслов"]
["54.01.05","Изготовитель художественных изделий из тканей с художественной росписью"]
["54.01.06","Изготовитель художественных изделий из металла"]
["54.01.07","Изготовитель художественных изделий из керамики"]
["54.01.08","Художник декоративной росписи по металлу"]
["54.01.09","Художник росписи по эмали"]
["54.01.10","Художник росписи по дереву"]
["54.01.11","Художник росписи по ткани"]
["54.01.12","Художник миниатюрной живописи"]
["54.01.13","Изготовитель художественных изделий из дерева"]
["54.01.14","Резчик"]
["54.01.15","Инкрустатор"]
["54.01.16","Лепщик-модельщик архитектурных деталей"]
["54.01.17","Реставратор строительный"]
["54.01.18","Реставратор тканей, гобеленов и ковров"]
["54.01.19","Реставратор памятников каменного и деревянного зодчества"]
["54.01.20","Графический дизайнер"]
["54.02.01","Дизайн (по отраслям)"]
["54.02.02","Декоративно-прикладное искусство и народные промыслы (по видам)"]
["54.02.03","Художественное оформление изделий текстильной и легкой промышленности"]
["54.02.04","Реставрация"]
["54.02.05","Живопись (по видам)"]
["54.02.06","Изобразительное искусство и черчение"]
["54.02.07","Скульптура"]
["54.02.08","Техника и искусство фотографии"]
["55.01.01","Киномеханик"]
["55.02.01","Театральная и аудиовизуальная техника (по видам)"]
["55.02.02","Анимация (по видам)"]